Workbook

Sheet Introduction
D3: Operational Risk Appraisal (Opra) for Installations under EPR
C8: Organisation Name | E8: Horizon Nuclear Power Wylfa Ltd | H8: Case Number
C10: Version | D10: NRW V1 | H10: Opra Scheme NRW V1
C12: Full instructions for the use of this spreadsheet are contained in the accompanying documentation. It is recommended that the user fills in the spreadsheet following the order of worksheets listed below (click on the appropriate tab at the bottom of the screen). Not all worksheets require input, for those that do, the fields that may require input have no background colour. The sequence of worksheets is divided into two sections Sheets 1 to 11 are concerned with the input of data. Sheet 12 is the summary for the Opra Scores and Sheet 13 displays the charges. If you cannot see the whole of this box or it is very small, please click 'View' and adjust 'Zoom' level.
B22: 1 | C22: Listed Activities | H22: 9 | I22: Emissions Summary
C23: Please refer to the Opra Scheme for Installations for the look-up tables and guidance. Use abbreviated descriptions, select the Schedule 1 references and bands from the pick lists provided. | I23: No input is required. Output screen only. Summary of emissions.
H24: 10 | I24: Location
H26: 11 | I26: Operational Management
B27: 2 | C27: Other Activities
C28: Please enter Part A(2), Part B and aggregated activities onto this sheet. | H28: 12 | I28: Opra Summary
B29: 3 | C29: Complexities | I29: No input is required. Output screen only. The emissions are shown separately.
C30: Summary of complexities and rules applied
B31: 4 | C31: Emissions to Air | H31: 13 | I31: Calculation
I32: No input is required. Charges with separate emissions totals. It is possible to clear the scores and recalculate the charges to include any amendments.
B33: 5 | C33: Emissions to Water
B35: 6 | C35: Emissions to Land
B37: 7 | C37: Emissions to Sewer
B39: 8 | C39: Emissions to Waste
I41: Consolidated Permit

Sheet Listed Activities
B2: Listed Activities - Complexity Attribute
C4: Organisation: | D4: =Introduction!E8 -> Horizon Nuclear Power Wylfa Ltd
C5: Case Number: | D5: =Introduction!I8 -> 0
C7: Former Permit Ref (If applicable) | D7: Description of Activity | E7: Schedule 1 Reference | F7: Regulatory Complexity | J7: Totals before any rules are applied
C8: 1 | D8: 4 x 25tph Boilers | E8: 1.1 Part A (1) a) (i) | F8: C | G8: 232 | H8: 1 | J8: A | K8: =SUMIF($F$8:$F$32,"A",$H$8:$H$32) -> 0
C9: 2 | D9: 2 x 3tph Boilers | E9: 1.1 Part A (1) a) (i) | F9: C | G9: 232 | H9: 1 | J9: B | K9: =SUMIF($F$8:$F$32,"B",$H$8:$H$32) -> 0
C10: 3 | D10: ASGs x2 | E10: 1.1 Part A (1) a) (i) | F10: C | G10: 232 | H10: 1 | J10: C | K10: =SUMIF($F$8:$F$32,"C",$H$8:$H$32) -> 7
C11: 4 | D11: BBGs x4 (Units 1 & 2) | E11: 1.1 Part A (1) a) (i) | F11: C | G11: 232 | H11: 1 | J11: D | K11: =SUMIF($F$8:$F$32,"D",$H$8:$H$32) -> 0
C12: 5 | D12: EDGs x3 (Unit 1) | E12: 1.1 Part A (1) a) (i) | F12: C | G12: 232 | H12: 1 | J12: E | K12: =SUMIF($F$8:$F$32,"E",$H$8:$H$32) -> 0
C13: 6 | D13: EDGs x3 (Unit 2) | E13: 1.1 Part A (1) a) (i) | F13: C | G13: 232 | H13: 1
C14: 7 | D14: Firewater Pumps x2 | E14: 1.1 Part A (1) a) (i) | F14: C | G14: 232 | H14: 1
C15: 8 | H15: 1
C16: 9 | H16: 1
C17: 10 | H17: 1
C18: 11 | H18: 1
C19: 12 | H19: 1
C20: 13 | H20: 1
C21: 14 | H21: 1
C22: 15 | H22: 1
C23: 16 | H23: 1
C24: 17 | H24: 1
C25: 18 | H25: 1 | J25: If there is insufficient space please attach a paper record
C26: 19 | H26: 1
C27: 20 | H27: 1
C28: 21 | H28: 1
C29: 22 | H29: 1
C30: 23 | H30: 1
C31: 24 | H31: 1
C32: 25 | H32: 1
C37: If Rule 4 applies - please complete Other Activities sheet
D73: Schedule 1 Part A Activities
H76: Permitted complexities
C77: Complexity Look up table | D77: Enumerated list index | E77: Schedule 1 Ref | F77: Number of Complexities | H77: 1st | I77: 2nd | J77: 3rd | K77: 4th
C79: A | D79: 232 | E79: 1.1 Part A (1) a) (i) | F79: 1 | H79: C
C80: B | D80: 233 | E80: 1.1 Part A (1) a) (ii) | F80: 1 | H80: D
C81: C | D81: 7 | E81: 1.2 Part A (1) a) | F81: 1 | H81: D
C82: D | D82: 9 | E82: 1.2 Part A (1) c) (A) | F82: 1 | H82: E
C83: E | D83: 178 | E83: 1.2 Part A (1) c) (B) | F83: 1 | H83: B
D84: 10 | E84: 1.2 Part A (1) d) | F84: 1 | H84: E
D85: 150 | E85: 1.2 Part A (1) g) | F85: 1 | H85: C
D86: 11 | E86: 1.2 Part A (1) h) (i) | F86: 1 | H86: C
D87: 12 | E87: 1.2 Part A (1) h) (ii) | F87: 1 | H87: C
D88: 242 | E88: 1.2 Part A (1) h) (A) | F88: 1 | H88: B
D89: 14 | E89: 1.2 Part A (1) j) | F89: 1 | H89: E
D90: 263 | E90: 1.2 Part A (1) j) (A) | F90: 1 | H90: C
D91: 16 | E91: 2.1 Part A (1) a) | F91: 1 | H91: C
D92: 155 | E92: 2.1 Part A (1) b) (i) | F92: 1 | H92: E
D93: 156 | E93: 2.1 Part A (1) b) (ii) | F93: 1 | H93: E
D94: 157 | E94: 2.1 Part A (1) b) (A) | F94: 1 | H94: D
D95: 18 | E95: 2.1 Part A (1) c) | F95: 1 | H95: C
D96: 19 | E96: 2.1 Part A (1) d) | F96: 1 | H96: A
D97: 30 | E97: 2.2 Part A (1) a) | F97: 1 | H97: C
D98: 243 | E98: 2.2 Part A (1) b) | F98: 1 | H98: B
D99: 36 | E99: 2.2 Part A (1) f) | F99: 1 | H99: A
D100: 42 | E100: 2.3 Part A (1) a) | F100: 1 | H100: A
D101: 44 | E101: 3.1 Part A (1) a) | F101: 1 | H101: C
D102: 45 | E102: 3.1 Part A (1) b) | F102: 1 | H102: C
D103: 50 | E103: 3.2 Part A (1) a) | F103: 1 | H103: A
D104: 51 | E104: 3.2 Part A (1) b) | F104: 1 | H104: A
D105: 52 | E105: 3.3 Part A (1) a) | F105: 1 | H105: A
D106: 54 | E106: 3.4 Part A (1) a) | F106: 1 | H106: A
D107: 161 | E107: 3.6 Part A (1) a) (i) | F107: 1 | H107: A
D108: 162 | E108: 3.6 Part A (1) a) (ii) | F108: 1 | H108: A
D109: 60 | E109: 4.1 Part A (1) a) (i) | F109: 2 | H109: B | I109: C
D110: 61 | E110: 4.1 Part A (1) a) (ii) | F110: 2 | H110: B | I110: C
D111: 62 | E111: 4.1 Part A (1) a) (iii) | F111: 2 | H111: B | I111: C
D112: 63 | E112: 4.1 Part A (1) a) (iv) | F112: 2 | H112: B | I112: C
D113: 65 | E113: 4.1 Part A (1) a) (v) | F113: 2 | H113: B | I113: C
D114: 66 | E114: 4.1 Part A (1) a) (vi) | F114: 2 | H114: B | I114: C
D115: 67 | E115: 4.1 Part A (1) a) (vii) | F115: 2 | H115: B | I115: C
D116: 68 | E116: 4.1 Part A (1) a) (viii) | F116: 2 | H116: B | I116: C
D117: 64 | E117: 4.1 Part A (1) a) (ix) | F117: 2 | H117: B | I117: C
D118: 69 | E118: 4.1 Part A (1) a) (x) | F118: 2 | H118: B | I118: C
D119: 70 | E119: 4.1 Part A (1) a) (xi) | F119: 2 | H119: B | I119: C
D120: 250 | E120: 4.1 Part A (1) a) (A) | F120: 1 | H120: A
D121: 300 | E121: 4.1 Part A (1) a) (B) | F121: 1 | H121: A
D122: 301 | E122: 4.1 Part A (1) a) (C) | F122: 1 | H122: A
D123: 78 | E123: 4.2 Part A (1) a) (i) | F123: 1 | H123: C
D124: 79 | E124: 4.2 Part A (1) a) (ii) | F124: 1 | H124: C
D125: 80 | E125: 4.2 Part A (1) a) (iii) | F125: 1 | H125: C
D126: 81 | E126: 4.2 Part A (1) a) (iv) | F126: 1 | H126: C
D127: 82 | E127: 4.2 Part A (1) a) (v) | F127: 1 | H127: C
D128: 83 | E128: 4.2 Part A (1) a) (vi) | F128: 1 | H128: C
D129: 252 | E129: 4.2 Part A (1) a) (A) | F129: 1 | H129: A
D130: 265 | E130: 4.2 Part A (1) a) (B) | F130: 1 | H130: C
D131: 84 | E131: 4.2 Part A (1) b) | F131: 1 | H131: A
D132: 86 | E132: 4.2 Part A (1) d) | F132: 1 | H132: A
D133: 163 | E133: 4.2 Part A (1) e) | F133: 1 | H133: A
D134: 87 | E134: 4.2 Part A (1) f) | F134: 1 | H134: A
D135: 89 | E135: 4.2 Part A (1) h) | F135: 1 | H135: A
D136: 90 | E136: 4.3 Part A (1) a) | F136: 1 | H136: C
D137: 254 | E137: 4.3 Part A (1) a) (A) | F137: 1 | H137: A
D138: 340 | E138: 4.3 Part A (1) a) (B) | F138: 1 | H138: A
D139: 91 | E139: 4.4 Part A (1) a) | F139: 2 | H139: C | I139: D
D140: 93 | E140: 4.5 Part A (1) a) | F140: 2 | H140: C | I140: D
D141: 94 | E141: 4.6 Part A (1) a) | F141: 2 | H141: C | I141: D
D142: 96 | E142: 4.7 Part A (1) b) | F142: 1 | H142: A
D143: 98 | E143: 5.1 Part A (1) a) | F143: 1 | H143: E
D144: 267 | E144: 5.1 Part A (1) a) (A) | F144: 1 | H144: C
D145: 302 | E145: 5.1 Part A (1) a) (B) | F145: 1 | H145: C
D146: 341 | E146: 5.1 Part A (1) a) (C) | F146: 1 | H146: B
D147: 303 | E147: 5.1 Part A (1) b) | F147: 1 | H147: E
D148: 304 | E148: 5.1 Part A (1) b) (A) | F148: 1 | H148: C
D149: 305 | E149: 5.1 Part A (1) b) (B) | F149: 1 | H149: C
D150: 306 | E150: 5.1 Part A (1) b) (C) | F150: 1 | H150: C
D151: 307 | E151: 5.1 Part A (1) b) (D) | F151: 1 | H151: B
D152: 308 | E152: 5.1 Part A (1) c) | F152: 1 | H152: C
D153: 106 | E153: 5.2 Part A (1) a) | F153: 2 | H153: C | I153: D
D154: 309 | E154: 5.3 Part A (1) a) (i) | F154: 1 | H154: B
D155: 310 | E155: 5.3 Part A (1) a) (ii) | F155: 1 | H155: B
D156: 108 | E156: 5.3 Part A (1) a) (ii) (A) | F156: 1 | H156: C
D157: 108 | E157: 5.3 Part A (1) a) (ii) (B) | F157: 1 | H157: B
D158: 345 | E158: 5.3 Part A (1) a) (ii) (C) | F158: 1 | H158: A
D159: 313 | E159: 5.3 Part A (1) a) (iii) | F159: 1 | H159: B
D160: 342 | E160: 5.3 Part A (1) a) (iii) (A) | F160: 1 | H160: A
D161: 314 | E161: 5.3 Part A (1) a) (iv) | F161: 1 | H161: B
D162: 343 | E162: 5.3 Part A (1) a) (iv) (A) | F162: 1 | H162: A
D163: 315 | E163: 5.3 Part A (1) a) (v) | F163: 1 | H163: A
D164: 317 | E164: 5.3 Part A (1) a) (vi) | F164: 1 | H164: A
D165: 318 | E165: 5.3 Part A (1) a) (vii) | F165: 1 | H165: A
D166: 344 | E166: 5.3 Part A (1) a) (viii) | F166: 1 | H166: A
D167: 319 | E167: 5.3 Part A (1) a) (ix) | F167: 1 | H167: A
D168: 320 | E168: 5.3 Part A (1) a) (x) | F168: 1 | H168: A
D169: 321 | E169: 5.3 Part A (1) a) (xi) | F169: 1 | H169: C
D170: 322 | E170: 5.4 Part A (1) a) (i) | F170: 1 | H170: A
D171: 323 | E171: 5.4 Part A (1) a) (ii) | F171: 1 | H171: A
D172: 324 | E172: 5.4 Part A (1) a) (iii) | F172: 1 | H172: A
D173: 325 | E173: 5.4 Part A (1) a) (iv) | F173: 1 | H173: A
D174: 326 | E174: 5.4 Part A (1) a) (v) | F174: 1 | H174: A
D175: 327 | E175: 5.4 Part A (1) b) (i) | F175: 1 | H175: A
D176: 328 | E176: 5.4 Part A (1) b) (ii) | F176: 1 | H176: A
D177: 329 | E177: 5.4 Part A (1) b) (iii) | F177: 1 | H177: A
D178: 330 | E178: 5.4 Part A (1) b) (iv) | F178: 1 | H178: A
D179: 121 | E179: 5.5 Part A (1) a) | F179: 1 | H179: B
D180: 331 | E180: 5.6 Part A (1) a) | F180: 1 | H180: B
D181: 332 | E181: 5.6 Part A (1) b) | F181: 1 | H181: D
D182: 333 | E182: 5.7 Part A (1) a) | F182: 1 | H182: A
D183: 259 | E183: 6.1 Part A (1) a) (A) | F183: 1 | H183: B
D184: 260 | E184: 6.1 Part A (1) a) (B) | F184: 1 | H184: A
D185: 261 | E185: 6.1 Part A (1) b) (A) | F185: 1 | H185: C
D186: 262 | E186: 6.1 Part A (1) b) (B) | F186: 1 | H186: A
D187: 125 | E187: 6.2 Part A (1) a) | F187: 1 | H187: A
D188: 126 | E188: 6.3 Part A (1) a) (i) | F188: 1 | H188: A
D189: 127 | E189: 6.3 Part A (1) a) (ii) | F189: 1 | H189: A
D190: 130 | E190: 6.4 Part A (1) b) | F190: 1 | H190: A
D191: 137 | E191: 6.8 Part A (1) a) | F191: 1 | H191: B
D192: 138 | E192: 6.8 Part A (1) b) | F192: 1 | H192: B
D193: 139 | E193: 6.8 Part A (1) c) | F193: 1 | H193: C
D194: 268 | E194: 6.8 Part A (1) c) (A) | F194: 1 | H194: A
D195: 140 | E195: 6.8 Part A (1) d) (i) | F195: 1 | H195: B
D196: 141 | E196: 6.8 Part A (1) d) (ii) | F196: 1 | H196: B
D197: 141 | E197: 6.8 Part A (1) d) (iii) | F197: 1 | H197: B
D198: 142 | E198: 6.8 Part A (1) e) | F198: 1 | H198: B
D199: 144 | E199: 6.10 Part A (1) a) | F199: 1 | H199: E
D203: Yes
D204: No
D225: Schedule 1 Part A(2) and (B) Activities
D228: 5 | E228: 1.1 Part B a)
D229: 177 | E229: 1.1 Part B b)
D230: 6 | E230: 1.1 Part B c) (i)
D231: 264 | E231: 1.1 Part B c) (ii)
D232: 180 | E232: 1.2 Part A (2) (a)
D233: 181 | E233: 1.2 Part B a)
D234: 15 | E234: 1.2 Part B b)
D235: 182 | E235: 1.2 Part B c)
D236: 183 | E236: 1.2 Part B d)
D237: 20 | E237: 2.1 Part A (2) a)
D238: 185 | E238: 2.1 Part A (2) b)
D239: 21 | E239: 2.1 Part A (2) c)
D240: 22 | E240: 2.1 Part A (2) d)
D241: 23 | E241: 2.1 Part B a)
D242: 24 | E242: 2.1 Part B b) (i)
D243: 25 | E243: 2.1 Part B b) (ii)
D244: 26 | E244: 2.1 Part B c)
D245: 27 | E245: 2.1 Part B d) (i)
D246: 28 | E246: 2.1 Part B d) (ii)
D247: 29 | E247: 2.1 Part B d) (iii)
D248: 176 | E248: 2.1 Part B e)
D249: 39 | E249: 2.2 Part A (2) a)
D250: 40 | E250: 2.2 Part B a)
D251: 186 | E251: 2.2 Part B b)
D252: 41 | E252: 2.2 Part B c)
D253: 187 | E253: 2.2 Part B d)
D254: 188 | E254: 2.2 Part B e)
D255: 189 | E255: 2.3 Part A (2) a)
D256: 43 | E256: 2.3 Part B a)
D257: 190 | E257: 3.1 Part A (2) a)
D258: 191 | E258: 3.1 Part A (2) b)
D259: 47 | E259: 3.1 Part B a)
D260: 48 | E260: 3.1 Part B b)
D261: 49 | E261: 3.1 Part B c)
D262: 192 | E262: 3.1 Part B d)
D263: 105 | E263: 3.2 Part B a)
D264: 193 | E264: 3.3 Part A (2) a)
D265: 194 | E265: 3.3 Part B a)
D266: 195 | E266: 3.3 Part B b)
D267: 196 | E267: 3.3 Part B c)
D268: 248 | E268: 3.3 Part B d) (i)
D269: 249 | E269: 3.3 Part B d) (ii)
D270: 198 | E270: 3.3 Part B e)
... 49 more rows

Sheet Other Activities
M1: This col is used to hold the enumerated list of sched activities
B2: Aggregation and Schedule1 Part A(2) and Part B Activities
C4: Organisation Name: | E4: =Introduction!E8 -> Horizon Nuclear Power Wylfa Ltd | G4: If there is insufficient space please attach a paper record
C5: Case Number: | E5: =Introduction!I8 -> 0
C8: Schedule 1 Part A(1) - Rule 4 Aggregation Details
C9: Former Permit Ref (If applicable) | D9: Aggregation Group | E9: Description | F9: Schedule 1 Ref | G9: Complexity
C10: 1
C11: 2
C12: 3
C13: 4
C14: 5
C15: 6
C16: 7
C17: 8
C18: 9
C19: 10
C20: 11
C21: 12
C22: 13
C23: 14
C24: 15
C25: 16
C26: 17
C27: 18
C28: 19
C29: 20
C30: 21
C31: 22
C32: 23
C33: 24
C34: 25
C37: Rule 4 | F37: Not Applied
C43: List of Schedule 1 Part (A) 2 and Part B Activities included in the Installation
D44: Enter description of Activity | F44: Schedule 1 Reference
C45: 1
C46: 2
C47: 3
C48: 4
C49: 5
C50: 6
C51: 7
C52: 8
C53: 9
C54: 10
C55: 11
C56: 12
C57: 13
C58: 14
C59: 15
C60: 16
C61: 17
C62: 18
C63: 19
C64: 20
L66: Number of entries | M66: 0
B100: 10 | D100: *
B101: 13

Sheet Complexities
B2: EPR- Installations Charging Scheme Complexity - Application of Rules
C4: Company | E4: =Introduction!E8 -> Horizon Nuclear Power Wylfa Ltd
C5: Permit | E5: =Introduction!I8 -> 0
C7: Former Permit Ref (if applicable) | D7: Description / Aggregation Group | E7: Schedule 1 Ref | F7: Complexity | G7: Rule 3 Capping | H7: Rule 5 not applied | I7: Rule 6 not applied | J7: Rule 7 Not Applied
C8: 1 | D8: 4 x 25tph Boilers | E8: 1.1 Part A (1) a) (i) | F8: C
C9: 2 | D9: 2 x 3tph Boilers | E9: 1.1 Part A (1) a) (i) | F9: C
C10: 3 | D10: ASGs x2 | E10: 1.1 Part A (1) a) (i) | F10: C
C11: 4 | D11: BBGs x4 (Units 1 & 2) | E11: 1.1 Part A (1) a) (i) | F11: C
C12: 5 | D12: EDGs x3 (Unit 1) | E12: 1.1 Part A (1) a) (i) | F12: C
C13: 6 | D13: EDGs x3 (Unit 2) | E13: 1.1 Part A (1) a) (i) | F13: C
C14: 7 | D14: Firewater Pumps x2 | E14: 1.1 Part A (1) a) (i) | F14: C
C15: 8
C16: 9
C17: 10
C18: 11
C19: 12
C20: 13
C21: 14
C22: 15
C23: 16
C24: 17
C25: 18
C26: 19
C27: 20
C28: 21
C29: 22
C30: 23
C31: 24
C32: 25
C33: 26
C34: 27
C35: 28
C36: 29
C37: 30
D42: Summary of Rules Applied | G42: These totals will be carried forward and used to calculate the Opra Risk Summary and Calculation of Charges
D43: Rule 3 | E43: Yes
D44: Rule 4 | E44: No
D45: Rule 5 | E45: No
D46: Rule 6 | E46: No
D47: Rule 7 | E47: No
D49: Scores after Rules applied (Used for calculation of Charges) | H49: Scores before rules applied (Used for summary of Risk)
C50: Complexity | D50: First 6 Complexities | E50: Remaining complexities | F50: Total
C51: A | D51: =COUNTIF(J$7:J$13,"A") -> 0 | E51: =COUNTIF(J$14:J$37,"A") -> 0 | F51: =D51+E51 -> 0 | H51: =COUNTIF(F$7:F$37,"A") -> 0
C52: B | D52: =COUNTIF(J$7:J$13,"B") -> 0 | E52: =COUNTIF(J$14:J$37,"B") -> 0 | F52: 0 | H52: =COUNTIF(F$7:F$37,"B") -> 0
C53: C | D53: =COUNTIF(J$7:J$13,"C") -> 0 | E53: =COUNTIF(J$14:J$37,"C") -> 0 | F53: 0 | H53: =COUNTIF(F$7:F$37,"C") -> 7
C54: D | D54: =COUNTIF(J$7:J$13,"D") -> 0 | E54: =COUNTIF(J$14:J$37,"D") -> 0 | F54: 0 | H54: =COUNTIF(F$7:F$37,"D") -> 0
C55: E | D55: =COUNTIF(J$7:J$13,"E") -> 0 | E55: =COUNTIF(J$14:J$37,"E") -> 0 | F55: 0 | H55: =COUNTIF(F$7:F$37,"E") -> 0
C56: Capped | D56: =COUNTIF(J$7:J$13,"*CAPPED") -> 0 | E56: =COUNTIF(J$14:J$37,"*CAPPED") -> 0 | F56: 0

Sheet Air
C3: Emissions Attribute - Releases to Air
C5: Organisation Name: | D5: =Introduction!E8 -> Horizon Nuclear Power Wylfa Ltd | H5: Please check that the data is entered in the correct units. The Emission Index will only show if the data entered exceeds the threshold.
C6: Case Number: | D6: =Introduction!I8 -> 0
C7: Please tick box if this sheet is applicable
C8: Substance | D8: Units | E8: Emission Threshold | F8: Maximum Quantity | G8: Emission Index | H8: Notes
C9: Oxides of Sulphur | D9: Tonnes Year | E9: 10 | G9: =IF(F9/E9<1,0,(F9/E9)) -> 0
C10: Oxides of Nitrogen | D10: Tonnes Year | E10: 10 | F10: 92.5 | G10: =IF(F10/E10<1,0,(F10/E10)) -> 9.25 | H10: Estimated from average annual operting hours (Tables 5.9 (boilers) and 5.10 (generators) in the supporting document) and the g/s emission rates given in the Air dispersion modelling report (appendix A of Appendix A)
C11: Carbon Monoxide | D11: Tonnes Year | E11: 1000 | G11: 0
C14: Beryllium | D14: Kg year | E14: 1 | G14: 0
C15: Cadmium | D15: Kg year | E15: 1 | G15: 0
C16: Lead | D16: Kg year | E16: 1 | G16: 0
C17: Mercury | D17: Kg year | E17: 1 | G17: 0
C19: Antimony | D19: Kg year | E19: 10 | G19: 0
C20: Arsenic | D20: Kg year | E20: 10 | G20: 0
C21: Chromium | D21: Kg year | E21: 10 | G21: 0
C22: Nickel | D22: Kg year | E22: 10 | G22: 0
C23: Selenium | D23: Kg year | E23: 10 | G23: 0
C25: Other Metals Specify
D26: Kg year | E26: 100 | G26: 0
D27: Kg year | E27: 100 | G27: =IF(F27/E27<1,0,(F27/E27)) -> 0
D28: Kg year | E28: 100 | G28: 0
D29: Kg year | E29: 100 | G29: 0
D30: Kg year | E30: 100 | G30: 0
C32: Organic Compounds
C33: Dioxins and Furans | D33: mg TEQ year | E33: 0.1 | G33: 0
C34: PCBs | D34: mg TEF year | E34: 0.1 | G34: 0
C36: PAHs as benzo(a)pyrene | D36: Kg year | E36: 1 | G36: 0
C37: Phosgene | D37: Kg year | E37: 1 | G37: 0
C38: Isocyanates | D38: Kg year | E38: 1 | G38: 0
C39: Di-ethyl sulphate | D39: Kg year | E39: 1 | G39: 0
C40: Di-methyl sulphate | D40: Kg year | E40: 1 | G40: 0
C42: Acrylonitrile | D42: Kg year | E42: 10 | G42: 0
C43: Aniline | D43: Kg year | E43: 10 | G43: =IF(F43/E43<1,0,(F43/E43)) -> 0
C44: Benzene | D44: Kg year | E44: 10 | G44: =IF(F44/E44<1,0,(F44/E44)) -> 0
C45: Benzyl Chloride | D45: Kg year | E45: 10 | G45: =IF(F45/E45<1,0,(F45/E45)) -> 0
C46: 1-chloro-2,3-epoxypropane | D46: Kg year | E46: 10 | G46: 0
C47: Chloroform | D47: Kg year | E47: 10 | G47: 0
C48: Cyanamide | D48: Kg year | E48: 10 | G48: 0
C49: Ethylene oxide | D49: Kg year | E49: 10 | G49: 0
C50: Formaldehyde | D50: Kg year | E50: 10 | G50: 0
C51: Maleic anhydride | D51: Kg year | E51: 10 | G51: 0
C52: Nitrobenzene | D52: Kg year | E52: 10 | G52: 0
C53: Allyl alcohol | D53: Kg year | E53: 10 | G53: 0
C56: Acetaldehyde | D56: Kg year | E56: 100 | G56: =IF(F56/E56<1,0,(F56/E56)) -> 0
C57: Acetonitrile | D57: Kg year | E57: 100 | G57: =IF(F57/E57<1,0,(F57/E57)) -> 0
C58: Benzene-1,2,4-tricarboxylic acid,1,2-anhydride | D58: Kg year | E58: 100 | G58: 0
C59: 1,3-butadiene | D59: Kg year | E59: 100 | G59: 0
C60: Chloroethene | D60: Kg year | E60: 100 | G60: 0
C61: 1,2-dichloroethane | D61: Kg year | E61: 100 | G61: 0
C62: Dimethylformamide | D62: Kg year | E62: 100 | G62: 0
C63: 1,4-dioxane | D63: Kg year | E63: 100 | G63: 0
C64: 2-ethyoxyethanol | D64: Kg year | E64: 100 | G64: 0
C65: 2-ethyoxyethylecetate | D65: Kg year | E65: 100 | G65: 0
C66: Ethyl acrylate | D66: Kg year | E66: 100 | G66: 0
C67: Iodomethane | D67: Kg year | E67: 100 | G67: 0
C68: Methylamine | D68: Kg year | E68: 100 | G68: 0
C69: 2-nitropropane | D69: Kg year | E69: 100 | G69: 0
C70: Phenol | D70: Kg year | E70: 100 | G70: 0
C71: Propylene oxide | D71: Kg year | E71: 100 | G71: 0
C72: HFC's | D72: Kg year | E72: 100 | G72: 0
C73: HCFC's | D73: Kg year | E73: 100 | G73: 0
C74: PFC's | D74: Kg year | E74: 100 | G74: 0
D75: Kg year
C76: Benzaldehyde | D76: Kg year | E76: 500 | G76: =IF(F76/E76<1,0,(F76/E76)) -> 0
C77: Benzo(a)pyrene | D77: Kg year | E77: 500 | G77: 0
C78: Butene | D78: Kg year | E78: 500 | G78: 0
C79: Chloromethane | D79: Kg year | E79: 500 | G79: 0
C80: 1,4-dichlorobenzene | D80: Kg year | E80: 500 | G80: 0
C81: Dichloromethane | D81: Kg year | E81: 500 | G81: 0
C82: Ethyl toluene | D82: Kg year | E82: 500 | G82: 0
C83: Ethylene | D83: Kg year | E83: 500 | G83: 0
C84: i-butyraldehyde | D84: Kg year | E84: 500 | G84: 0
C85: Methyl bromide | D85: Kg year | E85: 500 | G85: 0
C86: Pentene | D86: Kg year | E86: 500 | G86: 0
C87: Propene | D87: Kg year | E87: 500 | G87: 0
C88: Styrene | D88: Kg year | E88: 500 | G88: 0
C89: Tetrachloroethane | D89: Kg year | E89: 500 | G89: 0
C90: Tetrachloroethene | D90: Kg year | E90: 500 | G90: 0
C91: Toluene diamine | D91: Kg year | E91: 500 | G91: 0
C92: 1,1,1-trichloroethane | D92: Kg year | E92: 500 | G92: 0
C93: Trichloroethylene | D93: Kg year | E93: 500 | G93: 0
C94: Trichlorotoluene | D94: Kg year | E94: 500 | G94: =IF(F94/E94<1,0,(F94/E94)) -> 0
C95: Trimethylbenzene | D95: Kg year | E95: 500 | G95: =IF(F95/E95<1,0,(F95/E95)) -> 0
C96: Xylene | D96: Kg year | E96: 500 | G96: =IF(F96/E96<1,0,(F96/E96)) -> 0
C99: Other VOCs specify
D100: Kg year | E100: 1000 | G100: =IF(F100/E100<1,0,(F100/E100)) -> 0
D101: Kg year | E101: 1000 | G101: 0
D102: Kg year | E102: 1000 | G102: 0
D103: Kg year | E103: 1000 | G103: 0
D104: Kg year | E104: 1000 | G104: 0
C105: Inorganics
C106: Fluorine | D106: Kg year | E106: 10 | G106: 0
C107: Chlorine | D107: Kg year | E107: 10 | G107: 0
C108: Bromine | D108: Kg year | E108: 10 | G108: 0
C109: Iodine | D109: Kg year | E109: 10 | G109: 0
C110: Hydrogen Fluoride | D110: Kg year | E110: 10 | G110: 0
C111: Hydrogen Bromide | D111: Kg year | E111: 10 | G111: 0
C112: Hydrogen Iodide | D112: Kg year | E112: 10 | G112: 0
C113: Hydrogen Chloride | D113: Kg year | E113: 1000 | G113: 0
C114: Hydrogen Sulphide | D114: Kg year | E114: 10 | G114: 0
C115: Ammonia | D115: Kg year | E115: 100 | G115: 0
C116: Carbon Disulphide | D116: Kg year | E116: 100 | G116: =IF(F116/E116<1,0,(F116/E116)) -> 0
C117: Particulates | D117: Kg year | E117: 100 | F117: 3584 | G117: =IF(F117/E117<1,0,(F117/E117)) -> 35.84
C119: Other inorganic compounds specify
C120: Table A1 Substances | D120: Kg year | E120: 0.1 | G120: =IF(E120>0,IF(F120/E120<1,0,(F120/E120)),) -> 0
C121: Table A2 Substances | D121: Kg year | E121: 1 | G121: =IF(E121>0,IF(F121/E121<1,0,(F121/E121)),) -> 0
C122: Table A3 Substances | D122: Kg year | E122: 10 | G122: =IF(E122>0,IF(F122/E122<1,0,(F122/E122)),) -> 0
C123: Table A4 Substances | D123: Kg year | E123: 100 | G123: =IF(E123>0,IF(F123/E123<1,0,(F123/E123)),) -> 0
C124: Table A5 Substances | D124: Kg year | E124: 1000 | G124: =IF(E124>0,IF(F124/E124<1,0,(F124/E124)),) -> 0
C125: Commercial in Confidence If you need to use these entries please contact your local EA office
G126: 0 | H126: Note: annual emissions of Oxides of Sulphur and Carbon Monoxide are not entered as they are below the OPRA reporting threshold
G127: 0
G128: 0
G129: 0
F130: Total | G130: =SUM(G9:G129) -> 45.09

Sheet Water
C3: Emissions Attribute - Releases to Water
C5: Orgnisation Name: | D5: =Introduction!E8 -> Horizon Nuclear Power Wylfa Ltd | F5: Please check that the data is entered in the correct units. The Emission Index will only show if the data entered exceeds the threshold.
C6: Case Number: | D6: =Introduction!I8 -> 0
C7: Please tick box if this sheet is applicable
C8: Substance | D8: Units | E8: Emission Threshold | F8: Maximum Quantity | G8: Emission Index | H8: Notes
C9: Aldrin | D9: Kg year | E9: 0.001 | G9: =IF(F9/E9<1,0,(F9/E9)) -> 0
C10: Azinphos-ethyl | D10: Kg year | E10: 0.001 | G10: =IF(F10/E10<1,0,(F10/E10)) -> 0
C11: DDT all isomers | D11: Kg year | E11: 0.001 | G11: =IF(F11/E11<1,0,(F11/E11)) -> 0
C12: Endosulfan | D12: Kg year | E12: 0.001 | G12: 0
C13: Endrin | D13: Kg year | E13: 0.001 | G13: 0
C14: Fenitrothion | D14: Kg year | E14: 0.001 | G14: 0
C15: Fenthion | D15: Kg year | E15: 0.001 | G15: 0
C16: Isodrin | D16: Kg year | E16: 0.001 | G16: 0
C17: Malathion | D17: Kg year | E17: 0.001 | G17: 0
C18: Parathion | D18: Kg year | E18: 0.001 | G18: 0
C20: Azinphos-methyl | D20: Kg year | E20: 0.01 | G20: 0
C21: Chlorfenvinphos | D21: Kg year | E21: 0.01 | G21: 0
C22: Diazinon | D22: Kg year | E22: 0.01 | G22: 0
C23: Dieldrin | D23: Kg year | E23: 0.01 | G23: 0
C24: Hexachlorobenzene | D24: Kg year | E24: 0.01 | G24: 0
C25: Hexachlorocyclohexanes | D25: Kg year | E25: 0.01 | G25: 0
C26: Hexachlorobutadiene | D26: Kg year | E26: 0.01 | G26: 0
C27: Mevinphos | D27: Kg year | E27: 0.01 | G27: 0
C28: Omethoate | D28: Kg year | E28: 0.01 | G28: 0
C29: Parathion methyl | D29: Kg year | E29: 0.01 | G29: 0
C30: Permethrin | D30: Kg year | E30: 0.01 | G30: 0
C31: Polychlorinated biphenyls | D31: Kg year | E31: 0.01 | G31: 0
C32: Triazophos | D32: Kg year | E32: 0.01 | G32: 0
C33: Tributyltin compounds | D33: Kg year | E33: 0.01 | G33: 0
C34: Trifluralin | D34: Kg year | E34: 0.01 | G34: 0
C35: Triphenyltin compounds | D35: Kg year | E35: 0.01 | G35: 0
C37: Atrazin | D37: Kg year | E37: 0.1 | G37: 0
C38: Pentachlorophenol and its compound | D38: Kg year | E38: 0.1 | G38: 0
C39: Simazine | D39: Kg year | E39: 0.1 | G39: 0
C40: Trichlorobenzene all isomers | D40: Kg year | E40: 0.1 | G40: 0
D41: Kg year
C42: Benzene | D42: Kg year | E42: 1 | G42: 0
C43: Bentazone | D43: Kg year | E43: 1 | G43: 0
C44: Biphenyl | D44: Kg year | E44: 1 | G44: 0
C45: Carbon Tetrachloride | D45: Kg year | E45: 1 | G45: 0
C46: Chloroform | D46: Kg year | E46: 1 | G46: 0
C47: Chloronitrotoluenes | D47: Kg year | E47: 1 | G47: 0
C48: 4-Chloro-3-Methylphenol | D48: Kg year | E48: 1 | G48: 0
C49: 2-Chlorophenol | D49: Kg year | E49: 1 | G49: 0
C50: 2,4 D non-ester | D50: Kg year | E50: 1 | G50: 0
C51: 2,4 D ester | D51: Kg year | E51: 1 | G51: 0
C52: Demeton | D52: Kg year | E52: 1 | G52: 0
C53: 1,2-Dichloroethane | D53: Kg year | E53: 1 | G53: 0
C54: Dimethoate | D54: Kg year | E54: 1 | G54: 0
C55: Linuron | D55: Kg year | E55: 1 | G55: 0
C56: Mecoprop | D56: Kg year | E56: 1 | G56: 0
C57: Napthalene | D57: Kg year | E57: 1 | G57: 0
C58: Tetrachloroethylene | D58: Kg year | E58: 1 | G58: 0
C59: 1,1,1-Trichloroethane | D59: Kg year | E59: 1 | G59: 0
C60: 1,1,2-Trichloroethane | D60: Kg year | E60: 1 | G60: 0
C61: Cadmium | D61: Kg year | E61: 1 | G61: 0
C62: Mercury | D62: Kg year | E62: 1 | G62: 0
C64: Nonylphenol Ethoxylate | D64: Kg year | E64: 20 | G64: 0
C65: Nonylphenols | D65: Kg year | E65: 20 | G65: 0
C66: Octylphenols | D66: Kg year | E66: 20 | G66: 0
C67: Toluene | D67: Kg year | E67: 20 | G67: 0
C68: Trichloroethylene | D68: Kg year | E68: 20 | G68: 0
C69: Xylenes | D69: Kg year | E69: 20 | G69: 0
C70: Arsenic | D70: Kg year | E70: 20 | G70: 0
C71: Chromium | D71: Kg year | E71: 20 | G71: 0
C72: Copper | D72: Kg year | E72: 20 | G72: 0
C73: Lead | D73: Kg year | E73: 20 | G73: 0
C74: Nickel | D74: Kg year | E74: 20 | G74: 0
C75: Zinc | D75: Kg year | E75: 20 | G75: =IF(F75/E75<1,0,(F75/E75)) -> 0
C77: All consented substances not listed above specify
C78: Table W1 Substances | D78: Kg year | E78: 0.01 | G78: =IF(E78>0,IF(F78/E78<1,0,(F78/E78)),) -> 0
C79: Table W2 Substances | D79: Kg year | E79: 0.1 | G79: =IF(E79>0,IF(F79/E79<1,0,(F79/E79)),) -> 0
C80: Table W3 Substances | D80: Kg year | E80: 1 | G80: 0
C81: Table W4 Substances | D81: Kg year | E81: 20 | G81: 0
C82: Table W5 Substances | D82: Kg year | E82: 100 | G82: 0
D83: Kg year | G83: 0
D84: Kg year | G84: 0
D85: Kg year | G85: 0
C86: Commercial in Confidence If you need to use these entries please contact your local EA office
G87: 0
G88: 0
G89: 0
G90: 0
F91: Total | G91: =SUM(G9:G90) -> 0

Sheet Land
B3: Emissions Attribute Releases to Land
C5: Organisation Name: | D5: =Introduction!E8 -> Horizon Nuclear Power Wylfa Ltd | F5: Please check that the data is entered in the correct units. The Emission Index will only show if the data entered exceeds the threshold.
C6: Case Number: | D6: =Introduction!I8 -> 0
C7: Please tick box if this sheet is applicable
C8: Substance/Landfill Type | D8: Units | E8: Emission Threshold | F8: Maximum Quantity | G8: Emission Index | H8: Notes
C9: Inert waste | D9: Tonnes year | E9: 1000 | G9: =IF(F9/E9<1,0,(F9/E9)) -> 0
C10: Non hazardous waste (non biodegradable) | D10: Tonnes year | E10: 350 | G10: =IF(F10/E10<1,0,(F10/E10)) -> 0
C11: Hazardous waste | D11: Tonnes year | E11: 100 | G11: =IF(F11/E11<1,0,(F11/E11)) -> 0
C12: Non hazardous waste (biodegradable) | D12: Tonnes year | E12: 100 | G12: =IF(F12/E12<1,0,(F12/E12)) -> 0
F14: Total | G14: =SUM(G9:G12) -> 0

Sheet Sewer
B3: Emissions Attribute - Off-site Disposals to Sewer
C5: Orgasination Name: | D5: =Introduction!E8 -> Horizon Nuclear Power Wylfa Ltd | F5: Please check that the data is entered in the correct units. The Emission Index will only show if the data entered exceeds the threshold.
C6: Case number: | D6: =Introduction!I8 -> 0
C7: Please tick box if this sheet is applicable
C8: Substance | D8: Units | E8: Emission Threshold | F8: Maximum Quantity | G8: Emission Index | H8: Notes
C9: Aldrin | D9: Kg year | E9: 0.001 | G9: =IF(F9/E9<1,0,(F9/E9)) -> 0
C10: Azinphos-ethyl | D10: Kg year | E10: 0.001 | G10: 0
C11: DDT all isomers | D11: Kg year | E11: 0.001 | G11: 0
C12: Endosulfan | D12: Kg year | E12: 0.001 | G12: 0
C13: Endrin | D13: Kg year | E13: 0.001 | G13: 0
C14: Fenitrothion | D14: Kg year | E14: 0.001 | G14: 0
C15: Fenthion | D15: Kg year | E15: 0.001 | G15: 0
C16: Isodrin | D16: Kg year | E16: 0.001 | G16: 0
C17: Malathion | D17: Kg year | E17: 0.001 | G17: 0
C18: Parathion | D18: Kg year | E18: 0.001 | G18: 0
D19: Kg year
C20: Azinphos-methyl | D20: Kg year | E20: 0.01 | G20: =IF(F20/E20<1,0,(F20/E20)) -> 0
C21: chlorfenvinphos | D21: Kg year | E21: 0.01 | G21: 0
C22: Diazinon | D22: Kg year | E22: 0.01 | G22: 0
C23: Dieldrin | D23: Kg year | E23: 0.01 | G23: 0
C24: Hexachlorobenzene | D24: Kg year | E24: 0.01 | G24: 0
C25: Hexachlorocyclohexanes | D25: Kg year | E25: 0.01 | G25: 0
C26: Hexachlorobutadiene | D26: Kg year | E26: 0.01 | G26: 0
C27: Mevinphos | D27: Kg year | E27: 0.01 | G27: 0
C28: Omethoate | D28: Kg year | E28: 0.01 | G28: 0
C29: Parathion methyl | D29: Kg year | E29: 0.01 | G29: 0
C30: Permethrin | D30: Kg year | E30: 0.01 | G30: 0
C31: Polychlorinated biphenyls | D31: Kg year | E31: 0.01 | G31: 0
C32: Triazophos | D32: Kg year | E32: 0.01 | G32: 0
C33: Tributyltin compounds | D33: Kg year | E33: 0.01 | G33: 0
C34: Trifluralin | D34: Kg year | E34: 0.01 | G34: 0
C35: Triphenyltin compounds | D35: Kg year | E35: 0.01 | G35: 0
C37: Atrazin | D37: Kg year | E37: 0.1 | G37: =IF(F37/E37<1,0,(F37/E37)) -> 0
C38: Pentachlorophenol and its compound | D38: Kg year | E38: 0.1 | G38: =IF(F38/E38<1,0,(F38/E38)) -> 0
C39: Simazine | D39: Kg year | E39: 0.1 | G39: =IF(F39/E39<1,0,(F39/E39)) -> 0
C40: Trichlorobenzene all isomers | D40: Kg year | E40: 0.1 | G40: =IF(F40/E40<1,0,(F40/E40)) -> 0
C42: Benzene | D42: Kg year | E42: 1 | G42: =IF(F42/E42<1,0,(F42/E42)) -> 0
C43: Bentazone | D43: Kg year | E43: 1 | G43: 0
C44: Biphenyl | D44: Kg year | E44: 1 | G44: 0
C45: Carbon Tetrachloride | D45: Kg year | E45: 1 | G45: 0
C46: Chloroform | D46: Kg year | E46: 1 | G46: 0
C47: Chloronitrotoluenes | D47: Kg year | E47: 1 | G47: 0
C48: 4-Chloro-3-Methylphenol | D48: Kg year | E48: 1 | G48: 0
C49: 2-Chlorophenol | D49: Kg year | E49: 1 | G49: 0
C50: 2,4 D non-ester | D50: Kg year | E50: 1 | G50: 0
C51: 2,4 D ester | D51: Kg year | E51: 1 | G51: 0
C52: Demeton | D52: Kg year | E52: 1 | G52: 0
C53: 1,2-Dichloroethane | D53: Kg year | E53: 1 | G53: 0
C54: Dimethoate | D54: Kg year | E54: 1 | G54: 0
C55: Linuron | D55: Kg year | E55: 1 | G55: 0
C56: Mecoprop | D56: Kg year | E56: 1 | G56: 0
C57: Napthalene | D57: Kg year | E57: 1 | G57: 0
C58: Tetrachloroethylene | D58: Kg year | E58: 1 | G58: 0
C59: 1,1,1-Trichloroethane | D59: Kg year | E59: 1 | G59: 0
C60: 1,1,2-Trichloroethane | D60: Kg year | E60: 1 | G60: 0
C61: Cadmium | D61: Kg year | E61: 1 | G61: 0
C62: Mercury | D62: Kg year | E62: 1 | G62: 0
C64: Nonylphenol Ethoxylate | D64: Kg year | E64: 20 | G64: =IF(F64/E64<1,0,(F64/E64)) -> 0
C65: Nonylphenols | D65: Kg year | E65: 20 | G65: 0
C66: Octylphenols | D66: Kg year | E66: 20 | G66: 0
C67: Toluene | D67: Kg year | E67: 20 | G67: 0
C68: Trichloroethylene | D68: Kg year | E68: 20 | G68: 0
C69: Xylenes | D69: Kg year | E69: 20 | G69: 0
C70: Arsenic | D70: Kg year | E70: 20 | G70: 0
C71: Chromium | D71: Kg year | E71: 20 | G71: 0
C72: Copper | D72: Kg year | E72: 20 | G72: 0
C73: Lead | D73: Kg year | E73: 20 | G73: 0
C74: Nickel | D74: Kg year | E74: 20 | G74: 0
C75: Zinc | D75: Kg year | E75: 20 | G75: 0
C77: All consented substances not listed above specify
C78: Chemical Oxygen Demand | D78: Kg year | E78: 10000 | G78: =IF(F78/E78<1,0,(F78/E78)) -> 0
C79: Suspended Solids | D79: Kg year | E79: 10000 | G79: =IF(F79/E79<1,0,(F79/E79)) -> 0
C80: Table S1 Substances | D80: Kg year | E80: 0.01 | G80: =IF(E80>0,IF(F80/E80<1,0,(F80/E80)),) -> 0
C81: Table S2 Substances | D81: Kg year | E81: 0.1 | G81: 0
C82: Table S3 Substances | D82: Kg year | E82: 1 | G82: 0
C83: Table S4 Substances | D83: Kg year | E83: 20 | G83: 0
C84: Table S5 Substances | D84: Kg year | E84: 100 | G84: 0
D85: Kg year | G85: 0
C86: Commercial in Confidence If you need to use these entries please contact your local EA office
G87: 0
G88: 0
G89: 0
G90: 0
E91: Total | G91: =SUM(G9:G90) -> 0
E92: Weighting Factor | G92: 0.33 | H92: (Weighting factor = 0.33)
E93: Weighted Total | G93: =G91*G92 -> 0

Sheet Waste
C2: Emissions Attribute - Off-site Disposals of Waste
C4: Organisation Name: | D4: ='Emissions Summary'!D4 -> Horizon Nuclear Power Wylfa Ltd | F4: Please check that the data is entered in the correct units. The Emission Index will only show if the data entered exceeds the threshold.
C5: Case Number: | D5: ='Emissions Summary'!D5 -> 0
C7: Substance | D7: Units | E7: Emission Threshold | F7: Maximum Quantity | G7: Emission Index | H7: Notes
C8: Inert waste | D8: Tonnes year | E8: 1000 | G8: =IF(F8/E8<1,0,(F8/E8)) -> 0
C9: Non hazardous waste (non biodegradable) | D9: Tonnes year | E9: 350 | G9: =IF(F9/E9<1,0,(F9/E9)) -> 0
C10: Hazardous waste | D10: Tonnes year | E10: 100 | G10: =IF(F10/E10<1,0,(F10/E10)) -> 0
C11: Non hazardous waste (biodegradable) | D11: Tonnes year | E11: 100 | G11: =IF(F11/E11<1,0,(F11/E11)) -> 0
E12: Total | G12: =SUM(G8:G11) -> 0
E13: Weighting Factor | G13: 0.33 | H13: (Weighting factor = 0.33)
E14: Weighted Total | G14: =G12*G13 -> 0
C21: Emissions Attribute - Off-site Recovery, Recycling, Re-use of Waste
C23: Company | D23: =D4 -> Horizon Nuclear Power Wylfa Ltd | F23: Please check that the data is entered in the correct units. The Emission Index will only show if the data entered exceeds the threshold.
C24: Permit | D24: =D5 -> 0
C26: Substance | D26: Units | E26: Emission Threshold | F26: Maximum Quantity | G26: Emission Index | H26: Notes
C27: Inert waste | D27: Tonnes year | E27: 1000 | G27: =IF(F27/E27<1,0,(F27/E27)) -> 0
C28: Non hazardous waste (non biodegradable) | D28: Tonnes year | E28: 350 | G28: =IF(F28/E28<1,0,(F28/E28)) -> 0
C29: Hazardous waste | D29: Tonnes year | E29: 100 | G29: =IF(F29/E29<1,0,(F29/E29)) -> 0
C30: Non hazardous waste (biodegradable) | D30: Tonnes year | E30: 100 | G30: =IF(F30/E30<1,0,(F30/E30)) -> 0
E32: Total | G32: =SUM(G27:G30) -> 0
E33: Weighting Factor | G33: 0.1 | H33: (Weighting factor = 0.1)
E34: Weighted Total | G34: =G32*G33 -> 0
E35: Off-Site Total | G35: =G14+G34 -> 0
B38: The table below should only be completed for S5.3 or 5.4 activities. For these activities the Off-Site Waste tables above should be left blank
C40: Emissions Attribute - Waste Input
C42: Company | D42: =D23 -> Horizon Nuclear Power Wylfa Ltd | F42: Please check that the data is entered in the correct units. The Emission Index will only show if the data entered exceeds the threshold.
C43: Permit | D43: =D24 -> 0
C45: Substance | D45: Units | E45: Emission Threshold | F45: Maximum Quantity | G45: Emission Index | H45: Notes
C46: Inert waste | D46: Tonnes year | E46: 1000 | G46: =IF(F46/E46<1,0,(F46/E46)) -> 0
C47: Non hazardous waste (non biodegradable) | D47: Tonnes year | E47: 750 | G47: =IF(F47/E47<1,0,(F47/E47)) -> 0
C48: Hazardous waste | D48: Tonnes year | E48: 250 | G48: =IF(F48/E48<1,0,(F48/E48)) -> 0
C49: Non hazardous waste (biodegradable) | D49: Tonnes year | E49: 500 | G49: =IF(F49/E49<1,0,(F49/E49)) -> 0
E51: Waste Input Total | G51: =SUM(G46:G49) -> 0

Sheet Emissions Summary
B2: Emissions Attribute Summary Sheet
C4: Organisation: | D4: =Introduction!E8 -> Horizon Nuclear Power Wylfa Ltd
C5: Case Number: | D5: =Introduction!I8 -> 0
C7: Pathway | D7: Overall Emission Index
C8: Air | D8: =ROUND(Air!G130,0) -> 45
C9: Water | D9: =ROUND(Water!G91,0) -> 0
C10: Land | D10: =ROUND(Land!G14,0) -> 0
C11: Sewer | D11: =ROUND(Sewer!G93,0) -> 0
C12: Waste Off Site | D12: =ROUND(Waste!G35,0) -> 0
C13: Waste Input | D13: =ROUND(Waste!G51,0) -> 0
C21: Pathway | D21: Band
C22: Air | D22: =IF(D8>0,IF(D8>=10,IF(D8>=100,IF(D8>=1000,IF(D8>=10000,5,4),3),2),1),0) -> 2 | E22: =IF(D22=0,"-",IF(D22=1,"A",IF(D22=2,"B",IF(D22=3,"C",IF(D22=4,"D","E"))))) -> B
C23: Water | D23: 0 | E23: -
C24: Land | D24: 0 | E24: -
C25: Sewer | D25: 0 | E25: -
C26: Waste Off Site | D26: 0 | E26: -
C27: Waste Input | D27: 0 | E27: -

Sheet Location
B1: Yes
B2: No
B5: Location Attribute
C7: Organisation Name: | D7: =Introduction!E8 -> Horizon Nuclear Power Wylfa Ltd
C8: Case Number: | D8: ='Emissions Summary'!$D$5 -> 0
C10: Parameter | D10: Yes/No | E10: Available | F10: Score
C11: Human Occupation/Presence: | F11: =IF(D12="Yes",E12, IF(D14="Yes",E14,IF(D16="Yes",E16,0))) -> 1
C12: a) if within 50m of the boundary | E12: 5
C13: or:
C14: b) if greater than 50m but less than 250m of boundary | E14: 3
C15: or:
C16: c) if greater than 250m but less than 1km of boundary | D16: Yes | E16: 1
C17: Statutory sites designated under Habitats Directive or CROW Act 2000: | F17: =IF(D18="Yes",E18, IF(D20="Yes",E20,0)) -> 3
C18: a) if "relevant" under Habitats Directive | D18: Yes | E18: 3
C19: or
C20: b) if CROW Act 2000 assessment required | D20: Yes | E20: 2
C21: a) if on an aquifer and within a Groundwater Protection Zone | D21: No | E21: 2 | F21: =IF(D21="Yes",E21, IF(D23="Yes",E23,0)) -> 0
C22: or
C23: b) if on an aquifer and not within a Groundwater Protection Zone | D23: No | E23: 1
C25: Sensitivity of receiving waters (information available from Agency's "What's in your backyard" webpages), if: | F25: =IF(D28="Yes",E28,IF(D27="Yes",E27,IF(D26="Yes",E26,0))) -> 3
C26: a) grade 5 | D26: No | E26: 1
C27: b) river category grade 4 or 3 | D27: No | E27: 2
C28: c) river category grade 2 or 1 or estuarine | D28: Yes | E28: 3
C29: a) If there is direct runoff from the site without interceptors or other active control measures | F29: =IF(D30="Yes",E30, IF(D32="Yes",E32,0)) -> 1
D30: No | E30: 2
C31: or
C32: b) If as above but there are interceptors or active control measures | D32: Yes | E32: 1
C33: a) If within an Air Quality Management Zone (AQMZ) and emit | F33: =IF(D34="Yes",E34,IF(D37="Yes",E37,IF(D39="Yes",E39,0))) -> 0
C34: pollutant that has been declared for that AQMZ | D34: No | E34: 3
C35: or
C36: b) If within 2km of an Air Quality Management Zone (AQMZ) and emit
C37: pollutant that has been declared for that AQMZ | D37: No | E37: 2 | F37: =IF(D40="Y",E40,IF(D39="Y",E39,IF(D38="Y",E38,0))) -> 0
C38: or
C39: c) as a) except do not emit pollutants that have be declared for the | D39: No | E39: 1
C40: AQMZ
C41: If within a flood plain | D41: Yes | E41: 2 | F41: =IF(D41="Yes",E41,0) -> 2
C42: Maximum Score = 20 Band A = 0 - 4, B = 5 - 8, C = 9 - 12, D = 13 - 17 and E = 18 - 20 | D42: Total | F42: =SUM(F11:F41) -> 10
D43: Band | F43: =IF(F42<=4,"A",IF(F42<=8,"B",IF(F42<=12,"C",IF(F42<=17,"D","E")))) -> C
C48: Location Attribute Totals | D48: Score
C49: Occupation | D49: =F11 -> 1
C50: Habitats | D50: =F17 -> 3
C51: Aquifers | D51: =F21 -> 0
C52: Receiving Waters | D52: =F25 -> 3
C53: Run Off | D53: =F29 -> 1
C54: Air Quality | D54: =F33 -> 0
C55: Flood Plain | D55: =F41 -> 2

Sheet Op Perf
A1: Yes
A2: No
C4: Operator Performance
E6: Yes/No | F6: Points available | G6: Points scored | H6: Post or group responsible for each requirement | J6: Document reference (*) or date by which systems will be in place (*see para 4.4.2)
C8: Operations and Maintenance section - 20%
D9: Effective operational and prev maintenance systems shall be employed on all aspects of the process where any failure could impact on the environment.
C10: 1 | D10: Are there documented operating procedures for operations that may have an adverse impact on the environment? | E10: Yes | F10: 2 | G10: =IF(E10="yes",F10,0) -> 2 | J10: Prior to 01/04/2025
C11: 2 | D11: Is there a defined procedure for identifying, reviewing and prioritising items of plant for which a preventative maintenance regime is appropriate? | E11: Yes | F11: 2 | G11: 2 | J11: Prior to 01/04/2025
C12: 3 | D12: Are there documented procedures for monitoring emissions or impacts? | E12: Yes | F12: 2 | G12: 2 | J12: Prior to 01/04/2025
C13: 4 | D13: Is there a preventative maintenance programme for those items of plant whose failure could lead to impact on the environment? | E13: Yes | F13: 1 | G13: 1 | J13: Prior to 01/04/2025
C14: 5 | D14: Does the preventative maintenance programme include regular checks and formal inspections of 'static' items such as tanks, pipework, retaining walls, bunds and ducts? | E14: Yes | F14: 1 | G14: 1 | J14: Prior to 01/04/2025
C15: 6 | D15: Do the operations and maintenance systems include auditing environmental performance? | E15: Yes | F15: 2 | G15: 2 | J15: Prior to 01/04/2025
C16: 7 | D16: Are the reports, results and recommendations arising from audits made available to senior management on a regular basis? | E16: Yes | F16: 2 | G16: 2 | J16: Prior to 01/04/2025
C17: 8 | D17: In the last two years, has there been any notifiable incident or release for which lack of maintenance was a contributory cause ? | E17: Yes | F17: -2 | G17: -2 | H17: Horizon contractor carrying out off-shore ground investigations- leak of 50 ml oil to sea. | J17: N/A
C18: 9 | D18: In the last two years, has there been any notifiable incident or release for which the root cause could not be identified? | E18: No | F18: -3 | G18: 0 | J18: N/A
D19: Operations and Maintenance Total | F19: 12 | G19: =SUM(G10:G18) -> 10 | H19: =G19/F19 -> 0.8333333333 | J19: =H19*H158/10 -> 1.666666667
C21: Competence and Training - 20%
D22: The Operator shall ensure that all relevant management and operational staff (including contractors and those responsible for purchasing equipment and materials) receive adequate training with regard to their responsibilities under the Permit. Particular attention should be given to the following:
D23:  Minimisation of all potential environmental effects from operation under normal, abnormal, start up and shut down circumstances;
D24:  Prevention of accidental emissions and action to be taken when accidental emissions occur; and
D25:  The need to report deviation from the permit.
C26: 1 | D26: Has a training needs assessment been carried out which: | E26: Yes | F26: 3 | G26: =IF(E26="yes",F26,0) -> 3 | J26: Prior to 01/04/2025
D27:  Identifies all posts for which specific environmental awareness training is required; and  Identifies the scope and level to which such training is to be given?
C28: 2 | D28: Are training systems in place for all relevant staff that cover the following factors:
D29:  the regulatory requirements associated with the Permit as they affect their work activities and responsibilities; | E29: Yes | F29: 2 | G29: =IF(E29="yes",F29,0) -> 2 | J29: Prior to 01/04/2025
D30:  likely potential environmental impacts which may be caused by plant under their control. This should cover both normal and abnormal circumstances; | E30: Yes | F30: 2 | G30: 2 | J30: Prior to 01/04/2025
D31:  reporting procedures to inform supervisors or managers of deviations from permit conditions; | E31: Yes | F31: 1 | G31: 1 | J31: Prior to 01/04/2025
D32:  procedures to be used by supervisors or managers and for the reporting of deviations from permit conditions to the Agency; and | E32: Yes | F32: 2 | G32: 2 | J32: Prior to 01/04/2025
D33:  prevention of accidental emissions and action to be taken when accidental emissions occur? | E33: Yes | F33: 2 | G33: 2 | J33: Prior to 01/04/2025
C34: 3 | D34: Are the skills and competencies necessary for key posts documented and are records of training needs and training received maintained? | E34: Yes | F34: 1 | G34: 1 | J34: Prior to 01/04/2025
C35: 4 | D35: Do the key posts include contractors, those responsible for liaising with contractors and those purchasing equipment and materials? | E35: Yes | F35: 1 | G35: 1 | J35: Prior to 01/04/2025
C36: 5 | D36: Do you assess the potential environmental risks posed by the work of contractors and provide instructions to contractors about protecting the environment while working on site? | E36: Yes | F36: 1 | G36: 1 | J36: =$J$34 -> Prior to 01/04/2025
C37: 6 | D37: In the last 2 years, have there been any notifiable incidents or releases, which it has been identified that lack of training was a contributory cause ? | E37: No | F37: -2 | G37: 0 | J37: N/A
C38: 7 | D38: Are there industry standards for training in this sector (e.g. WAMITAB) and if so do you apply them? (If no industry standards please leave blank) | F38: -2 | G38: =IF(E38="no",F38,0) -> 0 | J38: N/A
C39: 8 | D39: Are individual and organisational training needs reviewed on a regular (e.g. annual) basis? | E39: Yes | F39: 2 | G39: =IF(E39="yes",F39,0) -> 2 | J39: =$J$34 -> Prior to 01/04/2025
D40: Competance Training Total | F40: 17 | G40: =SUM(G26:G39) -> 17
C42: Emergency planning - 20%
D43: The Operator shall maintain an accident management plan which identifies potential events or failures which might lead to an environmental impact. The plan shall identify:
D44:  the likelihood of, and the actions to be taken to minimise, these potential occurrences;
D45:  the environmental consequences and an action plan to deal with such occurrences;
D46:  The Operator shall have a written procedure for handling, investigating, communicating and reporting of incidents and actual or potential non-compliance with permit conditions including taking action to mitigate any impacts caused and for initiating and completing corrective action.  In the case of abnormal emissions the operator shall;
D48:  investigate and undertake remedial action immediately;
D49:  promptly record the events and actions taken; and
D50:  ensure the Regulator is made aware, as soon as practicable.
C51: 1 | D51: Is there an accident plan that complies with guidance covering the following aspects of foreseeable scenarios: likelihood, consequences,actions to prevent, action to take in the event it occurs? | E51: Yes | F51: 4 | G51: =IF(E51="yes",F51,0) -> 4 | J51: =$J$34 -> Prior to 01/04/2025
C52: 2 | D52: Has the plan identified areas where improvement is needed? | E52: No | F52: 1 | G52: =IF(E52="yes",F52,0) -> 0 | J52: N/A
C53: 3 | D53: Where improvement has been identified, does the plan include an implementation programme with acceptable timescales to the Agency? If not, 2 points will be deducted. | F53: -2 | G53: =IF(E53="no",F53,0) -> 0 | J53: N/A
C54: 4 | D54: Are there written procedures for handling, investigating, communicating and reporting actual or potential non compliance with operating procedures or emission limits? | E54: Yes | F54: 1 | G54: =IF(E54="yes",F54,0) -> 1 | J54: =$J$34 -> Prior to 01/04/2025
C55: 5 | D55: Are there written procedures for handling, investigating, communicating and reporting environmental complaints? | E55: Yes | F55: 1 | G55: =IF(E55="yes",F55,0) -> 1 | J55: =$J$34 -> Prior to 01/04/2025
C56: 6 | D56: Are there written procedures for investigating incidents, (and near-misses) including identifying suitable corrective action and following up implementation of that action? | E56: Yes | F56: 2 | G56: =IF(E56="yes",F56,0) -> 2 | J56: =$J$34 -> Prior to 01/04/2025
C57: 7 | D57: In the last 2 years, have there been any notifiable incidents or releases for which it has been identified that lack of emergency planning was a contributory cause ? | E57: No | F57: -2 | G57: =IF(E57="yes",F57,0) -> 0 | J57: N/A
C58: 8 | D58: Are there audit records of investigations into non compliance, complaints and incidents? Does the audit cover follow up actions? Do the audit reports go to senior managers? | E58: Yes | F58: 3 | G58: =IF(E58="yes",F58,0) -> 3 | J58: =$J$34 -> Prior to 01/04/2025
D59: Emergency planning Total | F59: 12 | G59: =SUM(G51:G58) -> 11
C61: Organisation - 40%
D62: The following aspects of site management procedures and controls may not be in the permit conditions but are likely to have an impact on the Agency resources required to apply the Env Permitting Regulations.
C63: 1 | D63: Do you operate an externally audited environment management system, if so answer one of the following questions. N.B Please enter your Certificate Number, Name of certification body and their UKAS Registration Number in the space for document reference.
C64: 1.1 | D64: Is your Environmental Management System EMAS registered? If yes select Y and go to question 4. | E64: No | F64: 20 | G64: =IF(E64="yes",F64,0) -> 0 | J64: N/A
C65: 1.2 | D65: Is your Environmental Management System certified to ISO 14001? If yes enter Y and go to questions 3 and 4. | E65: Yes | F65: 15 | G65: =IF(E65="yes",F65,0) -> 15 | J65: Doc reg: HG-M-02-MAN-01-02, Horizon Management System (HMS) 4.0
C66: 1.3 | D66: Is your system an Environmental Mangement System subject to external audit through a third party audit programme with a published methodology (excludes in-house company audit programme). If yes enter and go to questions 3 and 4. | F66: 12 | G66: =IF(E66="yes",F66,0) -> 0
D67: Sub Total | F67: Max 20 | G67: =IF(E64="yes",F64,IF(E65="yes",F65,IF(E66="yes",F66,0))) -> 15
C68: 2 | D68: If you do not operate an externally audited environmental management system then assess your system against the criteria below:
C69: 2.1 | D69: Has your company adopted an environmental policy and programme which :
D70:  includes a commitment to continual improvement and prevention of pollution? | F70: 1 | G70: =IF(E70="yes",F70,0) -> 0
D71:  includes a commitment to comply with relevant legislation, and with other requirements that the organisation subscribes to? | F71: 1 | G71: =IF(E71="yes",F71,0) -> 0
D72:  identifies, sets, monitors and reviews environmental objectives, independently of the permit? | F72: 1 | G72: =IF(E72="yes",F72,0) -> 0
C73: 2.2 | D73: Are there procedures that incorporate environmental issues into the following areas (as supported by demonstrable evidence e.g. written procedures):
D74:  the control of process change on the installation; | F74: 1 | G74: =IF(E74="yes",F74,0) -> 0
D75:  design and review of new facilities (including provision for their decommisioning), engineering and other capital projects; | F75: 1 | G75: 0
D76:  capital approval; | F76: 1 | G76: 0
D77:  purchasing policy; | F77: 1 | G77: 0
C78: 2.3 | D78: Are there audits, at least annually, to check that all activities are being carried out in conformity with the above requirements? | F78: 1 | G78: 0
C79: 2.4 | D79: Are they independent? (name the auditing body) | F79: 2 | G79: 0
C80: 2.5 | D80: Are there reports annually on environmental performance, objectives and targets, future planned improvements and or facilitate (participate in) local community liaison meetings? | F80: 1 | G80: 0
C81: 3 | D81: Does your company produce a public environmental statement? You may score in this box for ISO 14001 and industry systems but not for EMAS as this is a requiremen for EMAS. | E81: No | F81: 1 | G81: 0 | J81: N/A
C82: 4 | D82: Within the past 5 years have you failed to meet an improvement condition either set by the Agency in a Permit or Variation by the due date, without prior agreement? (minus 2 for each failure). ADD NUMBER OF FAILURES NOT Y OR N | F82: -2 | G82: =E82*F82 -> 0 | J82: N/A
D83: Organisational Totals | F83: 20 | G83: =IF(E64="yes",G67+G82,IF(OR(E65="yes",E66="yes"),G67+G81+G82,SUM(G70:G82))) -> 15
C85: Enforcement History (0 to -40% weighting)
H86: Notice etc | I86: Date Issued | J86: Date Spent
C87: 1 | D87: Enforcement , Improvement, Works, Compliance or Restoration Notices issued in the past year by the Environment Agency under any legislation, by the Health and Safety Executive relevant to the COMAH Regulations or by local authorities under Part I of the Environmental Protection Act 1990 or relevant notice or Abatement Notices issued by local authorities or magistrates courts under Part III of the Environmental Protection Act 1990 | E87: 0 | F87: None 0 1st - 5 2nd -10 3rd or more -40
C93: 2 | D93: Formal cautions, Enforcement Undertakings or Fixed Monetary Penalties issued by the Environment Agency in respect of offences under any legislation in the last 3 years. | E93: 0 | F93: None 0 1st - 5 2nd -10 3rd or more -40
C99: 3 | D99: Prohibition, Stop, Suspension or Revocation Notices issued by the Environment Agency under any legislation, by the Health and Safety Executive relevant to the COMAH Regulations or by local authorities under Part I of the Environmental Protection Act 1990 in the last 3 years | E99: 0 | F99: None 0 1st - 10 2nd or more -40
C105: 4 | D105: Convictions on prosecutions brought by the Environment Agency under any legislation, by the Health and Safety Executive relevant to the COMAH regulations or by local authorities (in respect of offences under Parts I or III of the Environmental Protection Act 1990) in last 5 years (10 years where imprisonment was imposed). Or any Variable Monetary Penalty. [NB each individual offence counts separately]. | E105: 0 | F105: None 0 1st - 15 2nd or more -40
E111: 0
D118: Enforcement History Total
E119: Entered | F119: Spent | G119: Extant | H119: Score
C120: 1 | D120: Enforcement etc Notices | E120: =EnforcementTotal -> 0 | F120: 0 | G120: =E120-F120 -> 0 | H120: =H232 -> 0
C121: 2 | D121: Formal Cautions etc | E121: =CautionTotal -> 0 | F121: 0 | G121: =E121-F121 -> 0
C122: 3 | D122: Prohibition etc Notices | E122: =ProhibitionTotal -> 0 | F122: 0 | G122: =E122-F122 -> 0
C123: 4 | D123: Convictions on Prosecutions etc | E123: =ConvictionTotal -> 0 | F123: 0 | G123: =E123-F123 -> 0
C124: 5 | D124: COMAH Improvement Notices | E124: =COMAHTotal -> 0 | F124: 0 | G124: =E124-F124 -> 0
D126: Enforcement History Total (min -40) | H126: =TotalScore -> 0
D150: Band E= less than 2 D= 2 to 3.99, C= 4 to 5.99, B= 6 to 7.99 , A= 8 to 11 | H150: BAND= | I150: =IF($G$118 = -40, "E",IF($I$163<2,"E",IF($I$163<4,"D",IF($I$163<6,"C",IF($I$163<8,"B",IF($I$163<12,"A")))))) -> A
D152: Company : | E152: =Introduction!E8 -> Horizon Nuclear Power Wylfa Ltd | H152: Permit: | I152: =Introduction!I8 -> 0
D156: Data calculations generating the above graph
D157: Summary | E157: Max | F157: Score from above | G157: Normalised to scale out of 10 | H157: Weighting | I157: Weighted score
D158: Maintenance 20% | E158: 12 | F158: =(G19) -> 10 | G158: =10/E158*F158 -> 8.333333333 | H158: 20 | I158: =G158*H158/100 -> 1.666666667
D159: Training 20% | E159: 17 | F159: =(G40) -> 17 | G159: =10/E159*F159 -> 10 | H159: 20 | I159: =G159*H159/100 -> 2
D160: Emergency Planning 20% | E160: 12 | F160: =(G59) -> 11 | G160: =10/E160*F160 -> 9.166666667 | H160: 20 | I160: =G160*H160/100 -> 1.833333333
D161: Organisation 40% | E161: 20 | F161: =(G83) -> 15 | G161: =10/E161*F161 -> 7.5 | H161: 40 | I161: =G161*H161/100 -> 3
D162: Enforcement History Penalty -up to 40% | E162: -40 | F162: =ABS(H126) -> 0 | G162: =10/E162*F162 -> 0 | H162: 40 | I162: =G162*H162/100 -> 0
D163: Overall average weighted score | I163: =SUM(I158:I162) -> 8.5
A190: 1 | B190: Enforcement etc Notices | E190: =CONCATENATE(E201,D87) -> Please type in the Enforcement , Improvement, Works, Compliance or Restoration Notices issued in the past year by the Environment Agency under any legislation, by the Health and Safety Executive relevant to the COMAH Regulations or by local authorities under Part I of the Environmental Protection Act 1990 or relevant notice or Abatement Notices issued by local authorities or magistrates courts under Part III of the Environmental Protection Act 1990
A191: 2 | B191: Formal Cautions etc | E191: =CONCATENATE(E201,D93) -> Please type in the Formal cautions, Enforcement Undertakings or Fixed Monetary Penalties issued by the Environment Agency in respect of offences under any legislation in the last 3 years.
A192: 3 | B192: Prohibition etc Notices | E192: =CONCATENATE(E201,D99) -> Please type in the Prohibition, Stop, Suspension or Revocation Notices issued by the Environment Agency under any legislation, by the Health and Safety Executive relevant to the COMAH Regulations or by local authorities under Part I of the Environmental Protection Act 1990 in the last 3 years
A193: 4 | B193: Convictions and Var Mon Penalties | E193: =CONCATENATE(E201,D105) -> Please type in the Convictions on prosecutions brought by the Environment Agency under any legislation, by the Health and Safety Executive relevant to the COMAH regulations or by local authorities (in respect of offences under Parts I or III of the Environmental Protection Act 1990) in last 5 years (10 years where imprisonment was imposed). Or any Variable Monetary Penalty. [NB each individual offence counts separately].
A194: 5 | B194: Not used | E194: Not used
E200: Once a selection is made from the pick list, any information already stored will be loaded into this form and can then be amended, deleted or added to as necessary.
E201: Please type in the
C203: 1 | D203: Enforcement or Works Notices
C204: 2 | D204: Formal Cautions
C205: 3 | D205: Prohibition, Suspension or Revocation Notices
C206: 4 | D206: Convictions on Prosecutions
C207: 5 | D207: Not used
H221: 1 | I221: 2 | J221: 3 plus
E222: =E119 -> Entered | F222: Spent | G222: Extant
C223: =C120 -> 1 | D223: Enforcement etc Notices | E223: 0 | F223: 0 | G223: 0 | H223: -5 | I223: -10 | J223: -40
C224: 2 | D224: Formal Cautions etc | E224: 0 | F224: 0 | G224: 0 | H224: -5 | I224: -10 | J224: -40
C225: 3 | D225: Prohibition etc Notices | E225: 0 | F225: 0 | G225: 0 | H225: -10 | I225: -40 | J225: -40
C226: 4 | D226: Convictions on Prosecutions etc | E226: 0 | F226: 0 | G226: 0 | H226: -15 | I226: -40 | J226: -40
C227: 5 | D227: COMAH Improvement Notices | E227: 0 | F227: 0 | G227: 0
F228: Total | G228: =SUM(G223:G227) -> 0
C231: Points | G231: Score (2 or less) | H231: Total Score
C232: 1 | D232: Enforcement or Works Notices | G232: =G223*H223 -> 0 | H232: =IF(G228>2,-40,G236) -> 0
C233: 2 | D233: Formal Cautions | G233: =G224*H224 -> 0
C234: 3 | D234: Prohibition, Suspension or Revocation Notices | G234: =IF(G225=1,H225,IF(G225=2,I225,0)) -> 0
C235: 4 | D235: Convictions on Prosecutions | G235: =IF(G226=1,H226,IF(G226=2,I226,0)) -> 0
G236: =SUM(G232:G235) -> 0
N249: Enforcement | O249: Caution | P249: Prohib | Q249: Sentence | R249: COM Fail | S249: Score
L250: EF = Enforcement Notice | N250: 0 | O250: 0 | P250: 0 | Q250: 0 | R250: 0 | S250: 0
L251: C = Caution | N251: 0 | O251: 0 | P251: 0 | Q251: 0 | R251: 1 | S251: -5
L252: P = Prohibition | N252: 0 | O252: 0 | P252: 0 | Q252: 0 | R252: 2 | S252: -10
L253: S = Sentence (Conviction) | N253: 0 | O253: 0 | P253: 0 | Q253: 0 | R253: 3 | S253: -40
L254: F = COMAH Failure | N254: 0 | O254: 0 | P254: 0 | Q254: 1 | R254: 0 | S254: -15
N255: 0 | O255: 0 | P255: 0 | Q255: 1 | R255: 1 | S255: -40
N256: 0 | O256: 0 | P256: 0 | Q256: 1 | R256: 2 | S256: -40
N257: 0 | O257: 0 | P257: 0 | Q257: 1 | R257: 3 | S257: -40
N258: 0 | O258: 0 | P258: 0 | Q258: 2 | R258: 0 | S258: -40
N259: 0 | O259: 0 | P259: 0 | Q259: 2 | R259: 1 | S259: -40
N260: 0 | O260: 0 | P260: 0 | Q260: 2 | R260: 2 | S260: -40
N261: 0 | O261: 0 | P261: 0 | Q261: 2 | R261: 3 | S261: -40
N262: 0 | O262: 0 | P262: 1 | Q262: 0 | R262: 0 | S262: -10
N263: 0 | O263: 0 | P263: 1 | Q263: 0 | R263: 1 | S263: -15
N264: 0 | O264: 0 | P264: 1 | Q264: 0 | R264: 2 | S264: -20
N265: 0 | O265: 0 | P265: 1 | Q265: 0 | R265: 3 | S265: -40
N266: 0 | O266: 0 | P266: 1 | Q266: 1 | R266: 0 | S266: -40
N267: 0 | O267: 0 | P267: 1 | Q267: 1 | R267: 1 | S267: -40
N268: 0 | O268: 0 | P268: 1 | Q268: 1 | R268: 2 | S268: -40
N269: 0 | O269: 0 | P269: 1 | Q269: 1 | R269: 3 | S269: -40
N270: 0 | O270: 0 | P270: 1 | Q270: 2 | R270: 0 | S270: -40
N271: 0 | O271: 0 | P271: 1 | Q271: 2 | R271: 1 | S271: -40
N272: 0 | O272: 0 | P272: 1 | Q272: 2 | R272: 2 | S272: -40
N273: 0 | O273: 0 | P273: 1 | Q273: 2 | R273: 3 | S273: -40
N274: 0 | O274: 0 | P274: 2 | Q274: 0 | R274: 0 | S274: -40
N275: 0 | O275: 0 | P275: 2 | Q275: 0 | R275: 1 | S275: -40
N276: 0 | O276: 0 | P276: 2 | Q276: 0 | R276: 2 | S276: -40
N277: 0 | O277: 0 | P277: 2 | Q277: 0 | R277: 3 | S277: -40
N278: 0 | O278: 0 | P278: 2 | Q278: 1 | R278: 0 | S278: -40
N279: 0 | O279: 0 | P279: 2 | Q279: 1 | R279: 1 | S279: -40
N280: 0 | O280: 0 | P280: 2 | Q280: 1 | R280: 2 | S280: -40
N281: 0 | O281: 0 | P281: 2 | Q281: 1 | R281: 3 | S281: -40
N282: 0 | O282: 0 | P282: 2 | Q282: 2 | R282: 0 | S282: -40
N283: 0 | O283: 0 | P283: 2 | Q283: 2 | R283: 1 | S283: -40
N284: 0 | O284: 0 | P284: 2 | Q284: 2 | R284: 2 | S284: -40
N285: 0 | O285: 0 | P285: 2 | Q285: 2 | R285: 3 | S285: -40
N286: 0 | O286: 0 | P286: 3 | Q286: 0 | R286: 0 | S286: -40
N287: 0 | O287: 0 | P287: 3 | Q287: 0 | R287: 1 | S287: -40
N288: 0 | O288: 0 | P288: 3 | Q288: 0 | R288: 2 | S288: -40
N289: 0 | O289: 0 | P289: 3 | Q289: 0 | R289: 3 | S289: -40
N290: 0 | O290: 0 | P290: 3 | Q290: 1 | R290: 0 | S290: -40
N291: 0 | O291: 0 | P291: 3 | Q291: 1 | R291: 1 | S291: -40
N292: 0 | O292: 0 | P292: 3 | Q292: 1 | R292: 2 | S292: -40
N293: 0 | O293: 0 | P293: 3 | Q293: 1 | R293: 3 | S293: -40
N294: 0 | O294: 0 | P294: 3 | Q294: 2 | R294: 0 | S294: -40
N295: 0 | O295: 0 | P295: 3 | Q295: 2 | R295: 1 | S295: -40
N296: 0 | O296: 0 | P296: 3 | Q296: 2 | R296: 2 | S296: -40
N297: 0 | O297: 0 | P297: 3 | Q297: 2 | R297: 3 | S297: -40
N298: 0 | O298: 1 | P298: 0 | Q298: 0 | R298: 0 | S298: -5
N299: 0 | O299: 1 | P299: 0 | Q299: 0 | R299: 1 | S299: -10
N300: 0 | O300: 1 | P300: 0 | Q300: 0 | R300: 2 | S300: -40
N301: 0 | O301: 1 | P301: 0 | Q301: 0 | R301: 3 | S301: -40
N302: 0 | O302: 1 | P302: 0 | Q302: 1 | R302: 0 | S302: -40
N303: 0 | O303: 1 | P303: 0 | Q303: 1 | R303: 1 | S303: -40
N304: 0 | O304: 1 | P304: 0 | Q304: 1 | R304: 2 | S304: -40
N305: 0 | O305: 1 | P305: 0 | Q305: 1 | R305: 3 | S305: -40
N306: 0 | O306: 1 | P306: 0 | Q306: 2 | R306: 0 | S306: -40
N307: 0 | O307: 1 | P307: 0 | Q307: 2 | R307: 1 | S307: -40
N308: 0 | O308: 1 | P308: 0 | Q308: 2 | R308: 2 | S308: -40
N309: 0 | O309: 1 | P309: 0 | Q309: 2 | R309: 3 | S309: -40
N310: 0 | O310: 1 | P310: 1 | Q310: 0 | R310: 0 | S310: -15
N311: 0 | O311: 1 | P311: 1 | Q311: 0 | R311: 1 | S311: -20
N312: 0 | O312: 1 | P312: 1 | Q312: 0 | R312: 2 | S312: -40
N313: 0 | O313: 1 | P313: 1 | Q313: 0 | R313: 3 | S313: -40
N314: 0 | O314: 1 | P314: 1 | Q314: 1 | R314: 0 | S314: -40
N315: 0 | O315: 1 | P315: 1 | Q315: 1 | R315: 1 | S315: -40
N316: 0 | O316: 1 | P316: 1 | Q316: 1 | R316: 2 | S316: -40
N317: 0 | O317: 1 | P317: 1 | Q317: 1 | R317: 3 | S317: -40
N318: 0 | O318: 1 | P318: 1 | Q318: 2 | R318: 0 | S318: -40
N319: 0 | O319: 1 | P319: 1 | Q319: 2 | R319: 1 | S319: -40
N320: 0 | O320: 1 | P320: 1 | Q320: 2 | R320: 2 | S320: -40
N321: 0 | O321: 1 | P321: 1 | Q321: 2 | R321: 3 | S321: -40
... 678 more rows

Sheet EP Summary
C3: Opra Banded Profile
C5: Organisation Name: | D5: =Introduction!E8 -> Horizon Nuclear Power Wylfa Ltd
C6: Case Number: | D6: =Introduction!I8 -> 0
E8: Profile before any rules or capping applied | G8: Opra Banded Profile used for charging
C9: Attribute | E9: Number | F9: Band | G9: Number | H9: Band
C10: Complexity | E10: =Complexities!H51 -> 0 | F10: A | G10: =Complexities!F51 -> 0 | H10: A
E11: =Complexities!H52 -> 0 | F11: B | G11: =Complexities!F52 -> 0 | H11: B
E12: =Complexities!H53 -> 7 | F12: C | G12: =Complexities!F53 -> 0 | H12: C
E13: =Complexities!H54 -> 0 | F13: D | G13: =Complexities!F54 -> 0 | H13: D
E14: =Complexities!H55 -> 0 | F14: E | G14: =Complexities!F55 -> 0 | H14: E
C15: Emissions | D15: Air | F15: ='Emissions Summary'!E22 -> B | H15: ='Emissions Summary'!E22 -> B
D16: Water | F16: ='Emissions Summary'!E23 -> - | H16: ='Emissions Summary'!E23 -> -
D17: Land | F17: ='Emissions Summary'!E24 -> - | H17: ='Emissions Summary'!E24 -> -
D18: Sewer | F18: ='Emissions Summary'!E25 -> - | H18: ='Emissions Summary'!E25 -> -
D19: Waste Off Site | F19: ='Emissions Summary'!E26 -> - | H19: ='Emissions Summary'!E26 -> -
D20: Waste Input | F20: ='Emissions Summary'!E27 -> - | H20: ='Emissions Summary'!E27 -> -
C21: Location | F21: =Location!F43 -> C | H21: =Location!F43 -> C
C22: Operator Performance | F22: ='Op Perf'!I150 -> A | H22: ='Op Perf'!I150 -> A

Sheet Calculation
C3: Organisation Name: | D3: =Introduction!E8 -> Horizon Nuclear Power Wylfa Ltd | F3: Case Number: | H3: =Introduction!I8 -> 0
C5: EPR Installations Application Charge Calculation
C6: (excludes Compliance Rating)
C7: Scoring Summary - Financial
C9: Attribute | D9: Band | F9: Score | G9: Total Score
C10: Complexity | D10: A | E10: 0 | F10: =HLOOKUP(D10,Lookup!$C$5:$G$13,2,FALSE) -> 2 | G10: =E10*F10 -> 0
D11: B | E11: 0 | F11: =HLOOKUP(D11,Lookup!$C$5:$G$13,2,FALSE) -> 15 | G11: 0
D12: C | E12: 3 | F12: =HLOOKUP(D12,Lookup!$C$5:$G$13,2,FALSE) -> 45 | G12: 135
D13: D | E13: 0 | F13: =HLOOKUP(D13,Lookup!$C$5:$G$13,2,FALSE) -> 82 | G13: 0
D14: E | E14: 0 | F14: =HLOOKUP(D14,Lookup!$C$5:$G$13,2,FALSE) -> 110 | G14: 0
E15: 3 | F15: =HLOOKUP(D15,Lookup!$C$5:$G$13,2,FALSE) -> 
E16: - | F16: =HLOOKUP(D16,Lookup!$C$5:$G$13,2,FALSE) -> 
C17: Emissions to Air | D17: B | G17: =IF(OR(D17="-",D17="",D17=0,D17="0"),0,HLOOKUP(D17,Lookup!$C$5:$G$13,3,FALSE)) -> 10
C18: Emissions to Water | D18: - | G18: =IF(OR(D18="-",D18="",D18=0,D18="0"),0,HLOOKUP(D18,Lookup!$C$5:$G$13,4,FALSE)) -> 0
C19: Emissions to Land | D19: - | G19: =IF(OR(D19="-",D19="",D19=0,D19="0"),0,HLOOKUP(D19,Lookup!$C$5:$G$13,5,FALSE)) -> 0
C20: Emissions to Sewer | D20: - | G20: =IF(OR(D20="-",D20="",D20=0,D20="0"),0,HLOOKUP(D20,Lookup!$C$5:$G$13,8,FALSE)) -> 0
C21: Emissions to Off-site Waste | D21: - | G21: =IF(OR(D21="-",D21="",D21=0,D21="0"),0,HLOOKUP(D21,Lookup!$C$5:$G$13,8,FALSE)) -> 0
C22: Emissions - Waste Input | D22: - | G22: =IF(OR(D22="-",D22="",D22=0,D22="0"),0,HLOOKUP(D22,Lookup!$C$5:$G$13,5,FALSE)) -> 0
C23: Location | D23: C | G23: =IF(OR(D23="-",D23="",D23=0,D23="0"),0,HLOOKUP(D23,Lookup!$C$5:$G$13,6,FALSE)) -> 20
C24: Operator Performance | D24: A | G24: =IF(OR(D24="-",D24="",D24=0,D24="0"),0,HLOOKUP(D24,Lookup!$C$5:$G$13,7,FALSE)) -> 10
D25: Total Opra charging score | G25: =SUM(G10:G14,G17:G24) -> 175
C27: Indicative Fees & Charges | F27: Part A(2) and Part B Activities
C28: Application Fee | D28: =Mult_App*Total_EP_OPRA_score1 -> 36050 | F28: Please ensure that you have completed these entries in the Listed Activities sheet. The charge shown will not include any charges associated with Local Authority Part A (2) or Part B activities that form part of the installation. Refer to Installations Charging Scheme for further details.
C30: Subsistence Charge* | D30: =Mult_Subs*Total_EP_OPRA_score1 -> 17500
C32: Substantial Variation | D32: =Mult_SubsVar*Total_EP_OPRA_score1 -> 19775
F33: Opra Charge Multipliers | N33: E
C34: Standard Variation | D34: =Mult_StanVar*Total_EP_OPRA_score1 -> 9975 | F34: Application | I34: 206 | N34: 206 | O34: 201
F35: Subsistence | I35: 100 | N35: 101 | O35: 98
C36: Partial Surrender | D36: =Mult_PartSur*Total_EP_OPRA_score1 -> 17150 | F36: Substantial Variation | I36: 113 | N36: 113 | O36: 110
F37: Standard Variation | I37: 57 | N37: 58 | O37: 56
C38: Full Surrender | D38: =Mult_FullSur*Total_EP_OPRA_score1 -> 22225 | F38: Partial Surrender | I38: 98 | N38: 99 | O38: 96
F39: Full Surrender | I39: 127 | N39: 127 | O39: 124
C40: Closure | D40: =Mult_Closure*Total_EP_OPRA_score1 -> 0 | F40: Closure (Landfill only)
C42: * Does not take into account Compliance Rating

Sheet Compliance Rating
C2: Compliance Rating
C4: Breach Category* | D4: Events | E4: Score per event | F4: Total
C5: 1 | D5: 0 | E5: 60 | F5: =IF(D5="","-",D5*E5) -> 0
C6: 2 | D6: 0 | E6: 31 | F6: =IF(D6="","-",D6*E6) -> 0
C7: 3 | D7: 0 | E7: 4 | F7: =IF(D7="","-",D7*E7) -> 0
C8: 4 | D8: 0 | E8: 0.1 | F8: =IF(D8="","-",D8*E8) -> 0
E10: Compliance Index | F10: =IF(F5&F6&F7&F8 = "----","-",SUM(F5:F8)) -> 0
D12: Compliance Rating Band | F12: =IF(F10="-","No Data",IF(F10>149,"F",IF(F10>60,"E",IF(F10>30,"D",IF(F10>10,"C",IF(F10>0,"B","A")))))) -> A
D14: Compliance Rating Multiplier | F14: =IF(F10="-",1,HLOOKUP(F12,Lookup!$C$5:$H$14,10,FALSE)) -> 0.95
B15: * Under Compliance Classification Scheme (CCS)
B17: Opra Score
B18: Without Compliance Rating | D18: =Total_EP_OPRA_score1 -> 175
B19: Including Compliance Rating | D19: =D18*F14 -> 166.25
B21: Subsistence Fee: | D21: =Mult_Subs*D19 -> 16625

Sheet XML Data (hidden)
F1: <?xml version="1.0" encoding="utf-8"?>
F2: <?EP OPRA data instance developed by Sean Moore Piper Networking Ltd - This version for Consultation of Version 2 of the OPRA Methodology?>
F3: <EPOPRA>
F4: <section>
B5: Spreadsheet Version | C5: <spreadsheetVersion> | D5: =Introduction!D10 -> NRW V1 | E5: </spreadsheetVersion> | F5: =CONCATENATE(C5,D5,E5) -> <spreadsheetVersion>NRW V1</spreadsheetVersion>
B6: Company Name | C6: <organisationName> | D6: =Introduction!E8 -> Horizon Nuclear Power Wylfa Ltd | E6: </organisationName> | F6: =CONCATENATE(C6,D6,E6) -> <organisationName>Horizon Nuclear Power Wylfa Ltd</organisationName>
B7: Case Number | C7: <caseNumber> | D7: =Introduction!I8 -> 0 | E7: </caseNumber> | F7: =CONCATENATE(C7,D7,E7) -> <caseNumber>0</caseNumber>
C8: <confidentiality> | D8: =IF(Introduction!J19="","","Commercial-in-Confidence") ->  | E8: </confidentiality>
B9: Start of Listed Activities | C9: <activities> | F9: =C9 -> <activities>
A10: 1 | B10: 1 - 25 are extracted from Listed Activities sheet | C10: <caseActivity> | F10: =C10 -> <caseActivity>
B11: Activity Description | C11: <actDescript> | D11: ='Listed Activities'!D8 -> 4 x 25tph Boilers | E11: </actDescript> | F11: <actDescript>4 x 25tph Boilers</actDescript>
B12: Schedule 1 reference | C12: <actId> | D12: ='Listed Activities'!G8 -> 232 | E12: </actId> | F12: <actId>232</actId>
B13: Complexity Band | C13: <actComplexity> | D13: =UPPER('Listed Activities'!F8) -> C | E13: </actComplexity> | F13: <actComplexity>C</actComplexity>
C14: </caseActivity> | F14: =C14 -> </caseActivity>
A15: 2 | C15: <caseActivity> | F15: =C15 -> <caseActivity>
B16: Activity Description | C16: <actDescript> | D16: ='Listed Activities'!D9 -> 2 x 3tph Boilers | E16: </actDescript> | F16: <actDescript>2 x 3tph Boilers</actDescript>
B17: Schedule 1 reference | C17: <actId> | D17: ='Listed Activities'!G9 -> 232 | E17: </actId> | F17: <actId>232</actId>
B18: Complexity Band | C18: <actComplexity> | D18: =UPPER('Listed Activities'!F9) -> C | E18: </actComplexity> | F18: <actComplexity>C</actComplexity>
C19: </caseActivity> | F19: =C19 -> </caseActivity>
A20: 3 | C20: <caseActivity> | F20: =C20 -> <caseActivity>
B21: Activity Description | C21: <actDescript> | D21: ='Listed Activities'!D10 -> ASGs x2 | E21: </actDescript> | F21: =CONCATENATE(C21,D21,E21) -> <actDescript>ASGs x2 </actDescript>
B22: Schedule 1 reference | C22: <actId> | D22: ='Listed Activities'!G10 -> 232 | E22: </actId> | F22: =CONCATENATE(C22,D22,E22) -> <actId>232</actId>
B23: Complexity Band | C23: <actComplexity> | D23: =UPPER('Listed Activities'!F10) -> C | E23: </actComplexity> | F23: =CONCATENATE(C23,D23,E23) -> <actComplexity>C</actComplexity>
C24: </caseActivity> | F24: =C24 -> </caseActivity>
A25: 4 | C25: <caseActivity> | F25: =C25 -> <caseActivity>
B26: Activity Description | C26: <actDescript> | D26: ='Listed Activities'!D11 -> BBGs x4 (Units 1 & 2) | E26: </actDescript> | F26: =CONCATENATE(C26,D26,E26) -> <actDescript>BBGs x4 (Units 1 & 2)</actDescript>
B27: Schedule 1 reference | C27: <actId> | D27: ='Listed Activities'!G11 -> 232 | E27: </actId> | F27: =CONCATENATE(C27,D27,E27) -> <actId>232</actId>
B28: Complexity Band | C28: <actComplexity> | D28: =UPPER('Listed Activities'!F11) -> C | E28: </actComplexity> | F28: =CONCATENATE(C28,D28,E28) -> <actComplexity>C</actComplexity>
C29: </caseActivity> | F29: =C29 -> </caseActivity>
A30: 5 | C30: <caseActivity> | F30: =C30 -> <caseActivity>
B31: Activity Description | C31: <actDescript> | D31: ='Listed Activities'!D12 -> EDGs x3 (Unit 1) | E31: </actDescript> | F31: =CONCATENATE(C31,D31,E31) -> <actDescript>EDGs x3 (Unit 1)</actDescript>
B32: Schedule 1 reference | C32: <actId> | D32: ='Listed Activities'!G12 -> 232 | E32: </actId> | F32: =CONCATENATE(C32,D32,E32) -> <actId>232</actId>
B33: Complexity Band | C33: <actComplexity> | D33: =UPPER('Listed Activities'!F12) -> C | E33: </actComplexity> | F33: =CONCATENATE(C33,D33,E33) -> <actComplexity>C</actComplexity>
C34: </caseActivity> | F34: =C34 -> </caseActivity>
A35: 6 | C35: <caseActivity> | F35: =C35 -> <caseActivity>
B36: Activity Description | C36: <actDescript> | D36: ='Listed Activities'!D13 -> EDGs x3 (Unit 2) | E36: </actDescript> | F36: =CONCATENATE(C36,D36,E36) -> <actDescript>EDGs x3 (Unit 2)</actDescript>
B37: Schedule 1 reference | C37: <actId> | D37: ='Listed Activities'!G13 -> 232 | E37: </actId> | F37: =CONCATENATE(C37,D37,E37) -> <actId>232</actId>
B38: Complexity Band | C38: <actComplexity> | D38: =UPPER('Listed Activities'!F13) -> C | E38: </actComplexity> | F38: =CONCATENATE(C38,D38,E38) -> <actComplexity>C</actComplexity>
C39: </caseActivity> | F39: =C39 -> </caseActivity>
A40: 7 | C40: <caseActivity> | F40: =C40 -> <caseActivity>
B41: Activity Description | C41: <actDescript> | D41: ='Listed Activities'!D14 -> Firewater Pumps x2 | E41: </actDescript> | F41: =CONCATENATE(C41,D41,E41) -> <actDescript>Firewater Pumps x2</actDescript>
B42: Schedule 1 reference | C42: <actId> | D42: ='Listed Activities'!G14 -> 232 | E42: </actId> | F42: =CONCATENATE(C42,D42,E42) -> <actId>232</actId>
B43: Complexity Band | C43: <actComplexity> | D43: =UPPER('Listed Activities'!F14) -> C | E43: </actComplexity> | F43: =CONCATENATE(C43,D43,E43) -> <actComplexity>C</actComplexity>
C44: </caseActivity> | F44: =C44 -> </caseActivity>
A45: 8 | C45: <caseActivity> | F45: =C45 -> <caseActivity>
B46: Activity Description | C46: <actDescript> | D46: ='Listed Activities'!D15 -> 0 | E46: </actDescript> | F46: =CONCATENATE(C46,D46,E46) -> <actDescript>0</actDescript>
B47: Schedule 1 reference | C47: <actId> | D47: ='Listed Activities'!G15 -> 0 | E47: </actId> | F47: =CONCATENATE(C47,D47,E47) -> <actId>0</actId>
B48: Complexity Band | C48: <actComplexity> | D48: =UPPER('Listed Activities'!F15) ->  | E48: </actComplexity> | F48: =CONCATENATE(C48,D48,E48) -> <actComplexity></actComplexity>
C49: </caseActivity> | F49: =C49 -> </caseActivity>
A50: 9 | C50: <caseActivity> | F50: =C50 -> <caseActivity>
B51: Activity Description | C51: <actDescript> | D51: ='Listed Activities'!D16 -> 0 | E51: </actDescript> | F51: =CONCATENATE(C51,D51,E51) -> <actDescript>0</actDescript>
B52: Schedule 1 reference | C52: <actId> | D52: ='Listed Activities'!G16 -> 0 | E52: </actId> | F52: =CONCATENATE(C52,D52,E52) -> <actId>0</actId>
B53: Complexity Band | C53: <actComplexity> | D53: =UPPER('Listed Activities'!F16) ->  | E53: </actComplexity> | F53: =CONCATENATE(C53,D53,E53) -> <actComplexity></actComplexity>
C54: </caseActivity> | F54: =C54 -> </caseActivity>
A55: 10 | C55: <caseActivity> | F55: =C55 -> <caseActivity>
B56: Activity Description | C56: <actDescript> | D56: ='Listed Activities'!D17 -> 0 | E56: </actDescript> | F56: =CONCATENATE(C56,D56,E56) -> <actDescript>0</actDescript>
B57: Schedule 1 reference | C57: <actId> | D57: ='Listed Activities'!G17 -> 0 | E57: </actId> | F57: =CONCATENATE(C57,D57,E57) -> <actId>0</actId>
B58: Complexity Band | C58: <actComplexity> | D58: =UPPER('Listed Activities'!F17) ->  | E58: </actComplexity> | F58: =CONCATENATE(C58,D58,E58) -> <actComplexity></actComplexity>
C59: </caseActivity> | F59: =C59 -> </caseActivity>
A60: 11 | C60: <caseActivity> | F60: =C60 -> <caseActivity>
B61: Activity Description | C61: <actDescript> | D61: ='Listed Activities'!D18 -> 0 | E61: </actDescript> | F61: =CONCATENATE(C61,D61,E61) -> <actDescript>0</actDescript>
B62: Schedule 1 reference | C62: <actId> | D62: ='Listed Activities'!G18 -> 0 | E62: </actId> | F62: =CONCATENATE(C62,D62,E62) -> <actId>0</actId>
B63: Complexity Band | C63: <actComplexity> | D63: =UPPER('Listed Activities'!F18) ->  | E63: </actComplexity> | F63: =CONCATENATE(C63,D63,E63) -> <actComplexity></actComplexity>
C64: </caseActivity> | F64: =C64 -> </caseActivity>
A65: 12 | C65: <caseActivity> | F65: =C65 -> <caseActivity>
B66: Activity Description | C66: <actDescript> | D66: ='Listed Activities'!D19 -> 0 | E66: </actDescript> | F66: =CONCATENATE(C66,D66,E66) -> <actDescript>0</actDescript>
B67: Schedule 1 reference | C67: <actId> | D67: ='Listed Activities'!G19 -> 0 | E67: </actId> | F67: =CONCATENATE(C67,D67,E67) -> <actId>0</actId>
B68: Complexity Band | C68: <actComplexity> | D68: =UPPER('Listed Activities'!F19) ->  | E68: </actComplexity> | F68: =CONCATENATE(C68,D68,E68) -> <actComplexity></actComplexity>
C69: </caseActivity> | F69: =C69 -> </caseActivity>
A70: 13 | C70: <caseActivity> | F70: =C70 -> <caseActivity>
B71: Activity Description | C71: <actDescript> | D71: ='Listed Activities'!D20 -> 0 | E71: </actDescript> | F71: =CONCATENATE(C71,D71,E71) -> <actDescript>0</actDescript>
B72: Schedule 1 reference | C72: <actId> | D72: ='Listed Activities'!G20 -> 0 | E72: </actId> | F72: =CONCATENATE(C72,D72,E72) -> <actId>0</actId>
B73: Complexity Band | C73: <actComplexity> | D73: =UPPER('Listed Activities'!F20) ->  | E73: </actComplexity> | F73: =CONCATENATE(C73,D73,E73) -> <actComplexity></actComplexity>
C74: </caseActivity> | F74: =C74 -> </caseActivity>
A75: 14 | C75: <caseActivity> | F75: =C75 -> <caseActivity>
B76: Activity Description | C76: <actDescript> | D76: ='Listed Activities'!D21 -> 0 | E76: </actDescript> | F76: =CONCATENATE(C76,D76,E76) -> <actDescript>0</actDescript>
B77: Schedule 1 reference | C77: <actId> | D77: ='Listed Activities'!G21 -> 0 | E77: </actId> | F77: =CONCATENATE(C77,D77,E77) -> <actId>0</actId>
B78: Complexity Band | C78: <actComplexity> | D78: =UPPER('Listed Activities'!F21) ->  | E78: </actComplexity> | F78: =CONCATENATE(C78,D78,E78) -> <actComplexity></actComplexity>
C79: </caseActivity> | F79: =C79 -> </caseActivity>
A80: 15 | C80: <caseActivity> | F80: =C80 -> <caseActivity>
B81: Activity Description | C81: <actDescript> | D81: ='Listed Activities'!D22 -> 0 | E81: </actDescript> | F81: =CONCATENATE(C81,D81,E81) -> <actDescript>0</actDescript>
B82: Schedule 1 reference | C82: <actId> | D82: ='Listed Activities'!G22 -> 0 | E82: </actId> | F82: =CONCATENATE(C82,D82,E82) -> <actId>0</actId>
B83: Complexity Band | C83: <actComplexity> | D83: =UPPER('Listed Activities'!F22) ->  | E83: </actComplexity> | F83: =CONCATENATE(C83,D83,E83) -> <actComplexity></actComplexity>
C84: </caseActivity> | F84: =C84 -> </caseActivity>
A85: 16 | C85: <caseActivity> | F85: =C85 -> <caseActivity>
B86: Activity Description | C86: <actDescript> | D86: ='Listed Activities'!D23 -> 0 | E86: </actDescript> | F86: =CONCATENATE(C86,D86,E86) -> <actDescript>0</actDescript>
B87: Schedule 1 reference | C87: <actId> | D87: ='Listed Activities'!G23 -> 0 | E87: </actId> | F87: =CONCATENATE(C87,D87,E87) -> <actId>0</actId>
B88: Complexity Band | C88: <actComplexity> | D88: =UPPER('Listed Activities'!F23) ->  | E88: </actComplexity> | F88: =CONCATENATE(C88,D88,E88) -> <actComplexity></actComplexity>
C89: </caseActivity> | F89: =C89 -> </caseActivity>
A90: 17 | C90: <caseActivity> | F90: =C90 -> <caseActivity>
B91: Activity Description | C91: <actDescript> | D91: ='Listed Activities'!D24 -> 0 | E91: </actDescript> | F91: =CONCATENATE(C91,D91,E91) -> <actDescript>0</actDescript>
B92: Schedule 1 reference | C92: <actId> | D92: ='Listed Activities'!G24 -> 0 | E92: </actId> | F92: =CONCATENATE(C92,D92,E92) -> <actId>0</actId>
B93: Complexity Band | C93: <actComplexity> | D93: =UPPER('Listed Activities'!F24) ->  | E93: </actComplexity> | F93: =CONCATENATE(C93,D93,E93) -> <actComplexity></actComplexity>
C94: </caseActivity> | F94: =C94 -> </caseActivity>
A95: 18 | C95: <caseActivity> | F95: =C95 -> <caseActivity>
B96: Activity Description | C96: <actDescript> | D96: ='Listed Activities'!D25 -> 0 | E96: </actDescript> | F96: =CONCATENATE(C96,D96,E96) -> <actDescript>0</actDescript>
B97: Schedule 1 reference | C97: <actId> | D97: ='Listed Activities'!G25 -> 0 | E97: </actId> | F97: =CONCATENATE(C97,D97,E97) -> <actId>0</actId>
B98: Complexity Band | C98: <actComplexity> | D98: =UPPER('Listed Activities'!F25) ->  | E98: </actComplexity> | F98: =CONCATENATE(C98,D98,E98) -> <actComplexity></actComplexity>
C99: </caseActivity> | F99: =C99 -> </caseActivity>
A100: 19 | C100: <caseActivity> | F100: =C100 -> <caseActivity>
B101: Activity Description | C101: <actDescript> | D101: ='Listed Activities'!D26 -> 0 | E101: </actDescript> | F101: =CONCATENATE(C101,D101,E101) -> <actDescript>0</actDescript>
B102: Schedule 1 reference | C102: <actId> | D102: ='Listed Activities'!G26 -> 0 | E102: </actId> | F102: =CONCATENATE(C102,D102,E102) -> <actId>0</actId>
B103: Complexity Band | C103: <actComplexity> | D103: =UPPER('Listed Activities'!F26) ->  | E103: </actComplexity> | F103: =CONCATENATE(C103,D103,E103) -> <actComplexity></actComplexity>
C104: </caseActivity> | F104: =C104 -> </caseActivity>
A105: 20 | C105: <caseActivity> | F105: =C105 -> <caseActivity>
B106: Activity Description | C106: <actDescript> | D106: ='Listed Activities'!D27 -> 0 | E106: </actDescript> | F106: =CONCATENATE(C106,D106,E106) -> <actDescript>0</actDescript>
B107: Schedule 1 reference | C107: <actId> | D107: ='Listed Activities'!G27 -> 0 | E107: </actId> | F107: =CONCATENATE(C107,D107,E107) -> <actId>0</actId>
B108: Complexity Band | C108: <actComplexity> | D108: =UPPER('Listed Activities'!F27) ->  | E108: </actComplexity> | F108: =CONCATENATE(C108,D108,E108) -> <actComplexity></actComplexity>
C109: </caseActivity> | F109: =C109 -> </caseActivity>
A110: 21 | C110: <caseActivity> | F110: =C110 -> <caseActivity>
B111: Activity Description | C111: <actDescript> | D111: ='Listed Activities'!D28 -> 0 | E111: </actDescript> | F111: =CONCATENATE(C111,D111,E111) -> <actDescript>0</actDescript>
B112: Schedule 1 reference | C112: <actId> | D112: ='Listed Activities'!G28 -> 0 | E112: </actId> | F112: =CONCATENATE(C112,D112,E112) -> <actId>0</actId>
B113: Complexity Band | C113: <actComplexity> | D113: =UPPER('Listed Activities'!F28) ->  | E113: </actComplexity> | F113: =CONCATENATE(C113,D113,E113) -> <actComplexity></actComplexity>
C114: </caseActivity> | F114: =C114 -> </caseActivity>
A115: 22 | C115: <caseActivity> | F115: =C115 -> <caseActivity>
B116: Activity Description | C116: <actDescript> | D116: ='Listed Activities'!D29 -> 0 | E116: </actDescript> | F116: =CONCATENATE(C116,D116,E116) -> <actDescript>0</actDescript>
B117: Schedule 1 reference | C117: <actId> | D117: ='Listed Activities'!G29 -> 0 | E117: </actId> | F117: =CONCATENATE(C117,D117,E117) -> <actId>0</actId>
B118: Complexity Band | C118: <actComplexity> | D118: =UPPER('Listed Activities'!F29) ->  | E118: </actComplexity> | F118: =CONCATENATE(C118,D118,E118) -> <actComplexity></actComplexity>
C119: </caseActivity> | F119: =C119 -> </caseActivity>
A120: 23 | C120: <caseActivity> | F120: =C120 -> <caseActivity>
B121: Activity Description | C121: <actDescript> | D121: ='Listed Activities'!D30 -> 0 | E121: </actDescript> | F121: =CONCATENATE(C121,D121,E121) -> <actDescript>0</actDescript>
B122: Schedule 1 reference | C122: <actId> | D122: ='Listed Activities'!G30 -> 0 | E122: </actId> | F122: =CONCATENATE(C122,D122,E122) -> <actId>0</actId>
B123: Complexity Band | C123: <actComplexity> | D123: =UPPER('Listed Activities'!F30) ->  | E123: </actComplexity> | F123: =CONCATENATE(C123,D123,E123) -> <actComplexity></actComplexity>
C124: </caseActivity> | F124: =C124 -> </caseActivity>
A125: 24 | C125: <caseActivity> | F125: =C125 -> <caseActivity>
B126: Activity Description | C126: <actDescript> | D126: ='Listed Activities'!D31 -> 0 | E126: </actDescript> | F126: =CONCATENATE(C126,D126,E126) -> <actDescript>0</actDescript>
B127: Schedule 1 reference | C127: <actId> | D127: ='Listed Activities'!G31 -> 0 | E127: </actId> | F127: =CONCATENATE(C127,D127,E127) -> <actId>0</actId>
B128: Complexity Band | C128: <actComplexity> | D128: =UPPER('Listed Activities'!F31) ->  | E128: </actComplexity> | F128: =CONCATENATE(C128,D128,E128) -> <actComplexity></actComplexity>
C129: </caseActivity> | F129: =C129 -> </caseActivity>
A130: 25 | C130: <caseActivity> | F130: =C130 -> <caseActivity>
B131: Activity Description | C131: <actDescript> | D131: ='Listed Activities'!D32 -> 0 | E131: </actDescript> | F131: =CONCATENATE(C131,D131,E131) -> <actDescript>0</actDescript>
B132: Schedule 1 reference | C132: <actId> | D132: ='Listed Activities'!G32 -> 0 | E132: </actId> | F132: =CONCATENATE(C132,D132,E132) -> <actId>0</actId>
B133: Complexity Band | C133: <actComplexity> | D133: =UPPER('Listed Activities'!F32) ->  | E133: </actComplexity> | F133: =CONCATENATE(C133,D133,E133) -> <actComplexity></actComplexity>
C134: </caseActivity> | F134: =C134 -> </caseActivity>
A135: 26 | B135: 26 - 50 are extracted from Other Activities (Sched 1 A(1)) sheet | C135: <caseActivity> | F135: =C135 -> <caseActivity>
B136: Activity Description | C136: <actDescript> | D136: ='Other Activities'!E10 -> 0 | E136: </actDescript> | F136: =CONCATENATE(C136,D136,E136) -> <actDescript>0</actDescript>
B137: Schedule 1 reference | C137: <actId> | D137: ='Other Activities'!M10 -> 0 | E137: </actId> | F137: =CONCATENATE(C137,D137,E137) -> <actId>0</actId>
B138: Complexity Band | C138: <actComplexity> | D138: =UPPER('Other Activities'!G10) ->  | E138: </actComplexity> | F138: =CONCATENATE(C138,D138,E138) -> <actComplexity></actComplexity>
C139: </caseActivity> | F139: =C139 -> </caseActivity>
A140: 27 | C140: <caseActivity> | F140: =C140 -> <caseActivity>
B141: Activity Description | C141: <actDescript> | D141: ='Other Activities'!E11 -> 0 | E141: </actDescript> | F141: =CONCATENATE(C141,D141,E141) -> <actDescript>0</actDescript>
B142: Schedule 1 reference | C142: <actId> | D142: ='Other Activities'!M11 -> 0 | E142: </actId> | F142: =CONCATENATE(C142,D142,E142) -> <actId>0</actId>
B143: Complexity Band | C143: <actComplexity> | D143: =UPPER('Other Activities'!G11) ->  | E143: </actComplexity> | F143: =CONCATENATE(C143,D143,E143) -> <actComplexity></actComplexity>
C144: </caseActivity> | F144: =C144 -> </caseActivity>
A145: 28 | C145: <caseActivity> | F145: =C145 -> <caseActivity>
B146: Activity Description | C146: <actDescript> | D146: ='Other Activities'!E12 -> 0 | E146: </actDescript> | F146: =CONCATENATE(C146,D146,E146) -> <actDescript>0</actDescript>
B147: Schedule 1 reference | C147: <actId> | D147: ='Other Activities'!M12 -> 0 | E147: </actId> | F147: =CONCATENATE(C147,D147,E147) -> <actId>0</actId>
B148: Complexity Band | C148: <actComplexity> | D148: =UPPER('Other Activities'!G12) ->  | E148: </actComplexity> | F148: =CONCATENATE(C148,D148,E148) -> <actComplexity></actComplexity>
C149: </caseActivity> | F149: =C149 -> </caseActivity>
A150: 29 | C150: <caseActivity> | F150: =C150 -> <caseActivity>
B151: Activity Description | C151: <actDescript> | D151: ='Other Activities'!E13 -> 0 | E151: </actDescript> | F151: =CONCATENATE(C151,D151,E151) -> <actDescript>0</actDescript>
B152: Schedule 1 reference | C152: <actId> | D152: ='Other Activities'!M13 -> 0 | E152: </actId> | F152: =CONCATENATE(C152,D152,E152) -> <actId>0</actId>
B153: Complexity Band | C153: <actComplexity> | D153: =UPPER('Other Activities'!G13) ->  | E153: </actComplexity> | F153: =CONCATENATE(C153,D153,E153) -> <actComplexity></actComplexity>
C154: </caseActivity> | F154: =C154 -> </caseActivity>
A155: 30 | C155: <caseActivity> | F155: =C155 -> <caseActivity>
B156: Activity Description | C156: <actDescript> | D156: ='Other Activities'!E14 -> 0 | E156: </actDescript> | F156: =CONCATENATE(C156,D156,E156) -> <actDescript>0</actDescript>
B157: Schedule 1 reference | C157: <actId> | D157: ='Other Activities'!M14 -> 0 | E157: </actId> | F157: =CONCATENATE(C157,D157,E157) -> <actId>0</actId>
B158: Complexity Band | C158: <actComplexity> | D158: =UPPER('Other Activities'!G14) ->  | E158: </actComplexity> | F158: =CONCATENATE(C158,D158,E158) -> <actComplexity></actComplexity>
C159: </caseActivity> | F159: =C159 -> </caseActivity>
A160: 31 | C160: <caseActivity> | F160: =C160 -> <caseActivity>
B161: Activity Description | C161: <actDescript> | D161: ='Other Activities'!E15 -> 0 | E161: </actDescript> | F161: =CONCATENATE(C161,D161,E161) -> <actDescript>0</actDescript>
B162: Schedule 1 reference | C162: <actId> | D162: ='Other Activities'!M15 -> 0 | E162: </actId> | F162: =CONCATENATE(C162,D162,E162) -> <actId>0</actId>
B163: Complexity Band | C163: <actComplexity> | D163: =UPPER('Other Activities'!G15) ->  | E163: </actComplexity> | F163: =CONCATENATE(C163,D163,E163) -> <actComplexity></actComplexity>
C164: </caseActivity> | F164: =C164 -> </caseActivity>
A165: 32 | C165: <caseActivity> | F165: =C165 -> <caseActivity>
B166: Activity Description | C166: <actDescript> | D166: ='Other Activities'!E16 -> 0 | E166: </actDescript> | F166: =CONCATENATE(C166,D166,E166) -> <actDescript>0</actDescript>
B167: Schedule 1 reference | C167: <actId> | D167: ='Other Activities'!M16 -> 0 | E167: </actId> | F167: =CONCATENATE(C167,D167,E167) -> <actId>0</actId>
B168: Complexity Band | C168: <actComplexity> | D168: =UPPER('Other Activities'!G16) ->  | E168: </actComplexity> | F168: =CONCATENATE(C168,D168,E168) -> <actComplexity></actComplexity>
C169: </caseActivity> | F169: =C169 -> </caseActivity>
A170: 33 | C170: <caseActivity> | F170: =C170 -> <caseActivity>
B171: Activity Description | C171: <actDescript> | D171: ='Other Activities'!E17 -> 0 | E171: </actDescript> | F171: =CONCATENATE(C171,D171,E171) -> <actDescript>0</actDescript>
B172: Schedule 1 reference | C172: <actId> | D172: ='Other Activities'!M17 -> 0 | E172: </actId> | F172: =CONCATENATE(C172,D172,E172) -> <actId>0</actId>
B173: Complexity Band | C173: <actComplexity> | D173: =UPPER('Other Activities'!G17) ->  | E173: </actComplexity> | F173: =CONCATENATE(C173,D173,E173) -> <actComplexity></actComplexity>
C174: </caseActivity> | F174: =C174 -> </caseActivity>
A175: 34 | C175: <caseActivity> | F175: =C175 -> <caseActivity>
B176: Activity Description | C176: <actDescript> | D176: ='Other Activities'!E18 -> 0 | E176: </actDescript> | F176: =CONCATENATE(C176,D176,E176) -> <actDescript>0</actDescript>
B177: Schedule 1 reference | C177: <actId> | D177: ='Other Activities'!M18 -> 0 | E177: </actId> | F177: =CONCATENATE(C177,D177,E177) -> <actId>0</actId>
B178: Complexity Band | C178: <actComplexity> | D178: =UPPER('Other Activities'!G18) ->  | E178: </actComplexity> | F178: =CONCATENATE(C178,D178,E178) -> <actComplexity></actComplexity>
C179: </caseActivity> | F179: =C179 -> </caseActivity>
A180: 35 | C180: <caseActivity> | F180: =C180 -> <caseActivity>
B181: Activity Description | C181: <actDescript> | D181: ='Other Activities'!E19 -> 0 | E181: </actDescript> | F181: =CONCATENATE(C181,D181,E181) -> <actDescript>0</actDescript>
B182: Schedule 1 reference | C182: <actId> | D182: ='Other Activities'!M19 -> 0 | E182: </actId> | F182: =CONCATENATE(C182,D182,E182) -> <actId>0</actId>
B183: Complexity Band | C183: <actComplexity> | D183: =UPPER('Other Activities'!G19) ->  | E183: </actComplexity> | F183: =CONCATENATE(C183,D183,E183) -> <actComplexity></actComplexity>
C184: </caseActivity> | F184: =C184 -> </caseActivity>
A185: 36 | C185: <caseActivity> | F185: =C185 -> <caseActivity>
B186: Activity Description | C186: <actDescript> | D186: ='Other Activities'!E20 -> 0 | E186: </actDescript> | F186: =CONCATENATE(C186,D186,E186) -> <actDescript>0</actDescript>
B187: Schedule 1 reference | C187: <actId> | D187: ='Other Activities'!M20 -> 0 | E187: </actId> | F187: =CONCATENATE(C187,D187,E187) -> <actId>0</actId>
B188: Complexity Band | C188: <actComplexity> | D188: =UPPER('Other Activities'!G20) ->  | E188: </actComplexity> | F188: =CONCATENATE(C188,D188,E188) -> <actComplexity></actComplexity>
C189: </caseActivity> | F189: =C189 -> </caseActivity>
A190: 37 | C190: <caseActivity> | F190: =C190 -> <caseActivity>
B191: Activity Description | C191: <actDescript> | D191: ='Other Activities'!E21 -> 0 | E191: </actDescript> | F191: =CONCATENATE(C191,D191,E191) -> <actDescript>0</actDescript>
B192: Schedule 1 reference | C192: <actId> | D192: ='Other Activities'!M21 -> 0 | E192: </actId> | F192: =CONCATENATE(C192,D192,E192) -> <actId>0</actId>
B193: Complexity Band | C193: <actComplexity> | D193: =UPPER('Other Activities'!G21) ->  | E193: </actComplexity> | F193: =CONCATENATE(C193,D193,E193) -> <actComplexity></actComplexity>
C194: </caseActivity> | F194: =C194 -> </caseActivity>
A195: 38 | C195: <caseActivity> | F195: =C195 -> <caseActivity>
B196: Activity Description | C196: <actDescript> | D196: ='Other Activities'!E22 -> 0 | E196: </actDescript> | F196: =CONCATENATE(C196,D196,E196) -> <actDescript>0</actDescript>
B197: Schedule 1 reference | C197: <actId> | D197: ='Other Activities'!M22 -> 0 | E197: </actId> | F197: =CONCATENATE(C197,D197,E197) -> <actId>0</actId>
B198: Complexity Band | C198: <actComplexity> | D198: =UPPER('Other Activities'!G22) ->  | E198: </actComplexity> | F198: =CONCATENATE(C198,D198,E198) -> <actComplexity></actComplexity>
C199: </caseActivity> | F199: =C199 -> </caseActivity>
A200: 39 | C200: <caseActivity> | F200: =C200 -> <caseActivity>
... 623 more rows

Sheet Amendment record (hidden)
A1: ep_opra_ppc_m2
A2: version 2.01
A3: 1 | B3: 12th Mar 2004 | C3: Spurious column heading in Op Perf sheet removed
A4: 2 | B4: 15th Mar 2004 | C4: In Air sheet Hydrogen Sulphide to air - units of measure entered
A5: 3 | B5: 15th Mar 2004 | C5: Missing ASR identified and updated - those with no enumeration index have been given #147 (other activities)
A6: 4 | B6: 14th Mar 2004 | C6: Fix to total of Complexities
A7: 5 | B7: 15th Mar 2004 | C7: National Security removed from Air, Water and Sewer sheets
A8: 6 | B8: 15th Mar 2004 | C8: Input form for Com in Conf amended to make all inputs obligatory if any one is present
A9: version 2.02
A10: 7 | B10: 24th Mar 2004 | C10: The version number is now stored in a single cell, formula still to be added to xml sheet to split into major and minor issue numbers (required for application form).
A11: 8 | B11: 27th Mar 2004 | C11: All combo boxes have 'input match' set to True - to stop people inputting there own (invalid) data
A12: 9 | B12: 27th Mar 2004 | C12: Enumerated list indexes corrected
A13: 10 | B13: 27th Mar 2004 | C13: ASRs (Activities) checked and new added to match regulation, see final spreadsheet from Ian Haskell
A14: 11 | B14: 29th Mar 2004 | C14: Sign off of ASRs (Tel call Ian Haskell)
A15: version 2.03
A16: 12 | B16: 3rd Apr 2004 | C16: Scoring error in location worksheet corrected
A17: version 2.04
A18: 13 | B18: 15th Apr 2004 | C18: missing calculation in releases to air (trichloroethylene)
A19: version 2.05
A20: 14 | B20: 7th May 2004 | C20: <OPRAChargingScore>, <OPRAMultiplier> added to xml sheet, <OPRAFee>, <OPRAsubsistanceFee> renamed. Xml sheet rows 813 to 816
A21: 15 | B21: 7th May 2004 | C21: Emission attribute summary sheet. An emission index of exactly 1000 (in all of the media) gives OPRA Band C, whereas the methodology states that this should be band D. Formula in cells D22 - D26 changed to inlude >= to ensure the correct banding.
A22: 16 | B22: 10th May 2004 | C22: Extra code added to module three to replace amphersands with hex char code to maintain integrity of xml file
A23: 17 | B23: 20th May 2004 | C23: Calculations for other consented substances inserted into Water and Sewer worksheets
A24: 18 | B24: 20th May 2004 | C24: Version ready for release for use following agreement from Ian Haskell and David Parr
A25: version 2.06
A26: 19 | B26: 21st May 2004 | C26: Version 2.05 was not released
A27: 20 | B27: 21st May 2004 | C27: Formula in cells Sewer G80 to G85 changed to =IF(Ex>0,IF(Fx/Ex<1,0,(Fx/Ex)),) where x is the row number
A28: 21 | B28: 21st May 2004 | C28: Formula in cells Water G78 to G85 changed to =IF(Ex>0,IF(Fx/Ex<1,0,(Fx/Ex)),) where x is the row number
A29: 22 | B29: 21st May 2004 | C29: Formula in cells air G120 to G124 changed to =IF(Ex>0,IF(Fx/Ex<1,0,(Fx/Ex)),) where x is the row number
A30: 23 | B30: 21st May 2004 | C30: Version number changed to 2.06 in Introduction cell D10
A31: 24 | B31: 21st May 2004 | C31: Version 2.06 released
A33: Version 3.0
A34: 21 | B34: 2005-02-01 | C34: Amended by Neil Gillan
A36: Version 3.1
A37: 22 | B37: 2006-02-01 | C37: Amended by Neil Gillan

Sheet Lookup (hidden)
B2: Part A(1) Band Score Lookup Table | F2: (Source: PPC Charging Consultation Oct 2005)
C4: Band Score
B5: Attribute | C5: A | D5: B | E5: C | F5: D | G5: E | H5: F
B6: Complexity | C6: 2 | D6: 15 | E6: 45 | F6: 82 | G6: 110
B7: Emissions to Air | C7: 3 | D7: 10 | E7: 20 | F7: 35 | G7: 50
B8: Emissions to Water | C8: 3 | D8: 10 | E8: 20 | F8: 35 | G8: 50
B9: Emissions to Land | C9: 3 | D9: 10 | E9: 20 | F9: 35 | G9: 50
B10: Location | C10: 3 | D10: 10 | E10: 20 | F10: 40 | G10: 60
B11: Operator Management | C11: 10 | D11: 25 | E11: 40 | F11: 60 | G11: 75
B12: Third party Water | C12: 1 | D12: 2 | E12: 3 | F12: 5 | G12: 10
B13: Third party Land | C13: 1 | D13: 2 | E13: 3 | F13: 5 | G13: 10
B14: Compliance Rating | C14: 0.95 | D14: 1 | E14: 1.1 | F14: 1.25 | G14: 1.5 | H14: 3
B17: Part A(1) Financial Factors | E17: (Source: PPC Charging Consultation Oct 2005)
B19: Application | C19: 182
B20: Subsistence | C20: 88
B24: Part A(2) & B Financial Factors
B26: Multiplier | C26: 1435 | E26: (Source: PPC Charging Consultation Oct 2005)
B30: Financial Year 2006/2007
